{"text_format":"1","workbook":"xlsx","n_sheets":1,"sheets":["الملف العام للموظفين "],"not_rendered":{"charts":0,"images":0,"macros":1,"external_links":0,"defined_names":0,"comments":1,"pivot_tables":0},"unopened":[],"bounds":{"document_bytes":16777216,"sheet_cells":100000,"rows_first":2000,"rows_last":500,"rows_between":2000,"halvings":0,"cell_chars":16384,"cell_head_chars":4096},"cells_cut":0,"cells_raw":0,"read":"whole","date_system":"1900"}

{"sheet":"الملف العام للموظفين ","index":0,"n_rows":593,"n_cols":41,"rows_kept":593,"cut":false,"hidden":false,"merged":[[541,16,542,16],[541,17,542,17],[541,18,542,18],[541,19,542,19],[541,40,542,40],[541,32,542,32],[541,33,542,33],[541,34,542,34],[541,35,542,35],[541,36,542,36],[541,37,542,37],[541,26,542,26],[541,27,542,27],[541,28,542,28],[541,29,542,29],[541,30,542,30],[541,31,542,31],[541,8,542,8],[541,9,542,9],[541,10,542,10],[541,11,542,11],[541,12,542,12],[541,13,542,13],[482,37,483,37],[482,40,483,40],[535,16,539,28],[535,29,535,32],[535,33,535,37],[482,14,483,14],[482,15,483,15],[482,16,483,16],[482,17,483,17],[482,18,483,18],[541,20,542,20],[541,21,542,21],[541,22,542,22],[541,23,542,23],[541,24,542,24],[541,25,542,25],[541,14,542,14],[541,15,542,15],[540,4,542,4],[540,5,542,5],[540,6,542,6],[540,7,540,37],[541,7,542,7],[482,31,483,31],[482,32,483,32],[482,33,483,33],[482,34,483,34],[482,35,483,35],[482,36,483,36],[482,25,483,25],[482,26,483,26],[482,27,483,27],[482,28,483,28],[482,29,483,29],[482,30,483,30],[482,19,483,19],[482,20,483,20],[482,21,483,21],[482,22,483,22],[482,23,483,23],[482,24,483,24],[482,13,483,13],[481,4,483,4],[481,5,483,5],[481,6,483,6],[481,7,481,37],[482,7,483,7],[482,8,483,8],[482,9,483,9],[482,10,483,10],[482,11,483,11],[482,12,483,12],[423,40,424,40],[476,16,480,28],[476,29,476,32],[476,33,476,37],[423,28,424,28],[423,29,424,29],[423,30,424,30],[423,31,424,31],[423,32,424,32],[423,33,424,33],[423,22,424,22],[423,23,424,23],[423,24,424,24],[423,25,424,25],[423,26,424,26],[423,27,424,27],[423,16,424,16],[423,17,424,17],[423,18,424,18],[423,19,424,19],[422,4,424,4],[422,5,424,5],[422,6,424,6],[422,7,422,37],[423,7,424,7],[423,8,424,8],[423,9,424,9],[423,20,424,20],[423,21,424,21],[423,10,424,10],[423,11,424,11],[423,12,424,12],[423,13,424,13],[423,14,424,14],[423,15,424,15],[423,34,424,34],[423,35,424,35],[423,36,424,36],[423,37,424,37],[364,40,365,40],[364,27,365,27],[364,28,365,28],[364,29,365,29],[364,30,365,30],[364,31,365,31],[364,32,365,32],[417,29,417,32],[417,33,417,37],[417,16,421,28],[364,17,365,17],[364,18,365,18],[364,19,365,19],[364,20,365,20],[364,33,365,33],[364,34,365,34],[364,35,365,35],[364,36,365,36],[364,37,365,37],[364,9,365,9],[364,10,365,10],[364,11,365,11],[364,12,365,12],[364,13,365,13],[364,14,365,14],[305,40,306,40],[358,16,362,28],[358,29,358,32],[358,33,358,37],[305,14,306,14],[305,15,306,15],[305,16,306,16],[305,17,306,17],[305,18,306,18],[305,19,306,19],[364,21,365,21],[364,22,365,22],[364,23,365,23],[364,24,365,24],[364,25,365,25],[364,26,365,26],[364,15,365,15],[364,16,365,16],[363,4,365,4],[363,5,365,5],[363,6,365,6],[363,7,363,37],[364,7,365,7],[364,8,365,8],[305,32,306,32],[305,33,306,33],[305,34,306,34],[305,35,306,35],[305,36,306,36],[305,37,306,37],[305,26,306,26],[305,27,306,27],[305,28,306,28],[305,29,306,29],[305,30,306,30],[305,31,306,31],[305,20,306,20],[305,21,306,21],[305,22,306,22],[305,23,306,23],[305,24,306,24],[305,25,306,25],[305,8,306,8],[305,9,306,9],[305,10,306,10],[305,11,306,11],[305,12,306,12],[305,13,306,13],[246,37,247,37],[246,40,247,40],[299,16,303,28],[299,29,299,32],[299,33,299,37],[246,14,247,14],[246,15,247,15],[246,16,247,16],[246,17,247,17],[246,18,247,18],[304,4,306,4],[304,5,306,5],[304,6,306,6],[304,7,304,37],[305,7,306,7],[246,31,247,31],[246,32,247,32],[246,33,247,33],[246,34,247,34],[246,35,247,35],[246,36,247,36],[246,25,247,25],[246,26,247,26],[246,27,247,27],[246,28,247,28],[246,29,247,29],[246,30,247,30],[246,19,247,19],[246,20,247,20],[246,21,247,21],[246,22,247,22],[246,23,247,23],[246,24,247,24],[246,13,247,13],[245,4,247,4],[245,5,247,5],[245,6,247,6],[245,7,245,37],[246,7,247,7],[246,8,247,8],[246,9,247,9],[246,10,247,10],[246,11,247,11],[246,12,247,12],[187,40,188,40],[240,16,244,28],[240,29,240,32],[240,33,240,37],[187,28,188,28],[187,29,188,29],[187,30,188,30],[187,31,188,31],[187,32,188,32],[187,33,188,33],[187,22,188,22],[187,23,188,23],[187,24,188,24],[187,25,188,25],[187,26,188,26],[187,27,188,27],[187,16,188,16],[187,17,188,17],[187,18,188,18],[187,19,188,19],[186,4,188,4],[186,5,188,5],[186,6,188,6],[186,7,186,37],[187,7,188,7],[187,8,188,8],[187,9,188,9],[187,20,188,20],[187,21,188,21],[187,10,188,10],[187,11,188,11],[187,12,188,12],[187,13,188,13],[187,14,188,14],[187,15,188,15],[187,34,188,34],[187,35,188,35],[187,36,188,36],[187,37,188,37],[128,40,129,40],[128,27,129,27],[128,28,129,28],[128,29,129,29],[128,30,129,30],[128,31,129,31],[128,32,129,32],[181,29,181,32],[181,33,181,37],[181,16,185,28],[128,17,129,17],[128,18,129,18],[128,19,129,19],[128,20,129,20],[128,33,129,33],[128,34,129,34],[128,35,129,35],[128,36,129,36],[128,37,129,37],[128,9,129,9],[128,10,129,10],[128,11,129,11],[128,12,129,12],[128,13,129,13],[128,14,129,14],[69,40,70,40],[122,16,126,28],[122,29,122,32],[122,33,122,37],[69,14,70,14],[69,15,70,15],[69,16,70,16],[69,17,70,17],[69,18,70,18],[69,19,70,19],[128,21,129,21],[128,22,129,22],[128,23,129,23],[128,24,129,24],[128,25,129,25],[128,26,129,26],[128,15,129,15],[128,16,129,16],[127,4,129,4],[127,5,129,5],[127,6,129,6],[127,7,127,37],[128,7,129,7],[128,8,129,8],[69,32,70,32],[69,33,70,33],[69,34,70,34],[69,35,70,35],[69,36,70,36],[69,37,70,37],[69,26,70,26],[69,27,70,27],[69,28,70,28],[69,29,70,29],[69,30,70,30],[69,31,70,31],[69,20,70,20],[69,21,70,21],[69,22,70,22],[69,23,70,23],[69,24,70,24],[69,25,70,25],[69,8,70,8],[69,9,70,9],[69,10,70,10],[69,11,70,11],[69,12,70,12],[69,13,70,13],[10,36,11,36],[10,37,11,37],[63,16,67,28],[63,29,63,32],[63,33,63,37],[10,13,11,13],[10,14,11,14],[10,15,11,15],[10,16,11,16],[10,17,11,17],[68,4,70,4],[68,5,70,5],[68,6,70,6],[68,7,68,37],[69,7,70,7],[10,30,11,30],[10,31,11,31],[10,32,11,32],[10,33,11,33],[10,34,11,34],[10,35,11,35],[10,24,11,24],[10,25,11,25],[10,26,11,26],[10,27,11,27],[10,28,11,28],[10,29,11,29],[10,18,11,18],[10,19,11,19],[10,20,11,20],[10,21,11,21],[10,22,11,22],[10,23,11,23],[10,12,11,12],[0,11,0,25],[1,11,1,21],[1,22,1,25],[1,29,1,32],[1,33,1,37],[2,7,2,37],[6,16,8,28],[9,4,11,4],[9,5,11,5],[9,6,11,6],[9,7,9,37],[10,7,11,7],[10,8,11,8],[10,9,11,9],[10,10,11,10],[10,11,11,11]]}
[null,null,null,null,null,null,null,null,null,null,null,"البطاقة الشخصية للغياب"]
[null,null,null,null,0,null,null,null,null,null,null,"شهر 05 سنة",null,null,null,null,null,null,null,null,null,null,"",null,null,null,null,null,null,"الموسم الدراسي :",null,null,null,0]
[null,null,null,null,10,null,null,"الأيـــــــــــــــــــــــــــــــــــــــــــــــــــــــــــــــــــــــــــام"]
[null,null,null,null,0,null,null,1,2,3,4,5,6,7,8,9,10,11,12,13,14,15,16,17,18,19,20,21,22,23,24,25,26,27,28,29,30,31]
[null,null,null,null,null,null,null,null,1,1,1,1]
[]
[null,null,null,null,null,null,null,null,null,null,null,null,null,null,null,null,"الثانية 1"]
[]
[]
[null,null,null,null,"رقم\nالتلميذ","الإسم و النسب","القسم","الأيـــــــــــــــــــــــــــــــــــــــــــــــــــــــــــــــــــــــــــام"]
[null,null,null,null,null,null,null,"01","02","03","04","05","06","07","08","09","10","11","12","13",14,"15","16","17","18","19","20","21","22","23","24","25","26","27","28","29","30","31"]
[null,null,null,null,null,null,null,null,null,3,4,5,6,7,8,9,10,11,12,13,14,15,16,17,18,19,20,21,22,23,24,25,26,27,28,29,30,31," مبرر",null,"غ غير مبرر"]
[1,{"$f":"AM13","v":0},{"$f":"AN13","v":0},0,1,"يونس بوصالح","الثانية 1",null,null,null,null,null,null,null,null,null,null,null,null,null,null,null,null,null,null,null,null,null,null,null,null,null,null,null,null,null,null,null,{"$f":"IF(RIGHT(H13)=\"j\",LEFT(H13))+IF(RIGHT(I13)=\"j\",LEFT(I13))+IF(RIGHT(J13)=\"j\",LEFT(J13))+IF(RIGHT(K13)=\"j\",LEFT(K13))+IF(RIGHT(L13)=\"j\",LEFT(L13))+IF(RIGHT(M13)=\"j\",LEFT(M13))+IF(RIGHT(N13)=\"j\",LEFT(N13))+IF(RIGHT(O13)=\"j\",LEFT(O13))+IF(RIGHT(P13)=\"j\",LEFT(P13))+IF(RIGHT(Q13)=\"j\",LEFT(Q13))+IF(RIGHT(R13)=\"j\",LEFT(R13))+IF(RIGHT(S13)=\"j\",LEFT(S13))+IF(RIGHT(T13)=\"j\",LEFT(T13))+IF(RIGHT(U13)=\"j\",LEFT(U13))+IF(RIGHT(V13)=\"j\",LEFT(V13))+IF(RIGHT(W13)=\"j\",LEFT(W13))+IF(RIGHT(X13)=\"j\",LEFT(X13))+IF(RIGHT(Y13)=\"j\",LEFT(Y13))+IF(RIGHT(Z13)=\"j\",LEFT(Z13))+IF(RIGHT(AA13)=\"j\",LEFT(AA13))+IF(RIGHT(AB13)=\"j\",LEFT(AB13))+IF(RIGHT(AC13)=\"j\",LEFT(AC13))+IF(RIGHT(AD13)=\"j\",LEFT(AD13))+IF(RIGHT(AE13)=\"j\",LEFT(AE13))+IF(RIGHT(AF13)=\"j\",LEFT(AF13))+IF(RIGHT(AG13)=\"j\",LEFT(AG13))+IF(RIGHT(AH13)=\"j\",LEFT(AH13))+IF(RIGHT(AI13)=\"j\",LEFT(AI13))+IF(RIGHT(AJ13)=\"j\",LEFT(AJ13))+IF(RIGHT(AK13)=\"j\",LEFT(AK13))+IF(RIGHT(AL13)=\"j\",LEFT(AL13))","v":0},null,{"$f":"SUM(H13:AL13)","v":0}]
[1,{"$f":"AM14","v":0},0,0,2,"حفصة القاسمي","الثانية 1",null,null,null,null,null,null,null,null,null,null,null,null,null,null,null,null,null,null,null,null,null,null,null,null,null,null,null,null,null,null,null,0,null,0]
[1,0,0,1,3,"انس الاملود","الثانية 1",null,null,null,null,null,null,null,null,1,null,null,null,null,null,null,null,null,null,null,null,null,null,null,null,null,null,null,null,null,null,null,0,null,1]
[1,0,0,0,4,"يونس حرورودو","الثانية 1",null,null,null,null,null,null,null,null,null,null,null,null,null,null,null,null,null,null,null,null,null,null,null,null,null,null,null,null,null,null,null,0,null,0]
[1,0,0,0,5,"سحر مرضي","الثانية 1",null,null,null,null,null,null,null,null,null,null,null,null,null,null,null,null,null,null,null,null,null,null,null,null,null,null,null,null,null,null,null,0,null,0]
[1,0,0,0,6,"نجوى محتي","الثانية 1",null,null,null,null,null,null,null,null,null,null,null,null,null,null,null,null,null,null,null,null,null,null,null,null,null,null,null,null,null,null,null,0,null,0]
[1,0,0,0,7,"منال ناعيم","الثانية 1",null,null,null,null,null,null,null,null,null,null,null,null,null,null,null,null,null,null,null,null,null,null,null,null,null,null,null,null,null,null,null,0,null,0]
[1,0,0,0,8,"عثمان بوراكة","الثانية 1",null,null,null,null,null,null,null,null,null,null,null,null,null,null,null,null,null,null,null,null,null,null,null,null,null,null,null,null,null,null,null,0,null,0]
[1,0,0,3,9,"سناء ايت عبد الرحمان","الثانية 1",null,null,1,null,null,null,null,null,2,null,null,null,null,null,null,null,null,null,null,null,null,null,null,null,null,null,null,null,null,null,null,0,null,3]
[1,0,0,0,10,"محمد الديش","الثانية 1",null,null,null,null,null,null,null,null,null,null,null,null,null,null,null,null,null,null,null,null,null,null,null,null,null,null,null,null,null,null,null,0,null,0]
[1,0,0,0,11,"عمران احمام","الثانية 1",null,null,null,null,null,null,null,null,null,null,null,null,null,null,null,null,null,null,null,null,null,null,null,null,null,null,null,null,null,null,null,0,null,0]
[1,0,0,3,12,"عبد الناصر شتمة","الثانية 1",null,null,null,1,null,null,null,null,null,null,null,2,null,null,null,null,null,null,null,null,null,null,null,null,null,null,null,null,null,null,null,0,null,3]
[1,0,0,3,13,"ياسين الدامي","الثانية 1",null,null,null,1,null,null,null,null,null,null,null,2,null,null,null,null,null,null,null,null,null,null,null,null,null,null,null,null,null,null,null,0,null,3]
[1,0,0,0,14,"بشرى الفاضلي","الثانية 1",null,null,null,null,null,null,null,null,null,null,null,null,null,null,null,null,null,null,null,null,null,null,null,null,null,null,null,null,null,null,null,0,null,0]
[1,0,0,0,15,"حمزة اعيسى","الثانية 1",null,null,null,null,null,null,null,null,null,null,null,null,null,null,null,null,null,null,null,null,null,null,null,null,null,null,null,null,null,null,null,0,null,0]
[1,0,0,3,16,"خليل اوتسدرات","الثانية 1",null,null,null,null,null,null,null,null,1,null,null,2,null,null,null,null,null,null,null,null,null,null,null,null,null,null,null,null,null,null,null,0,null,3]
[1,0,0,0,17,"عبلة العسالي","الثانية 1",null,null,null,null,null,null,null,null,null,null,null,null,null,null,null,null,null,null,null,null,null,null,null,null,null,null,null,null,null,null,null,0,null,0]
[1,0,0,0,18,"رجاء الويز","الثانية 1",null,null,null,null,null,null,null,null,null,null,null,null,null,null,null,null,null,null,null,null,null,null,null,null,null,null,null,null,null,null,null,0,null,0]
[1,0,0,0,19,"سلمى مودو","الثانية 1",null,null,null,null,null,null,null,null,null,null,null,null,null,null,null,null,null,null,null,null,null,null,null,null,null,null,null,null,null,null,null,0,null,0]
[1,0,0,0,20,"فاطمة العلاوي","الثانية 1",null,null,null,null,null,null,null,null,null,null,null,null,null,null,null,null,null,null,null,null,null,null,null,null,null,null,null,null,null,null,null,0,null,0]
[1,{"$f":"AM33","v":0},{"$f":"AN33","v":0},4,21,"معاد عثماني","الثانية 1",null,null,null,1,null,null,null,null,3,null,null,null,null,null,null,null,null,null,null,null,null,null,null,null,null,null,null,null,null,null,null,0,null,4]
[1,{"$f":"AM34","v":6},0,2,22,"ياسين الحياني","الثانية 1",null,null,null,"6j",null,null,null,null,null,null,null,2,null,null,null,null,null,null,null,null,null,null,null,null,null,null,null,null,null,null,null,6,null,2]
[1,0,0,0,23,"فاتن اكَرام","الثانية 1",null,null,null,null,null,null,null,null,null,null,null,null,null,null,null,null,null,null,null,null,null,null,null,null,null,null,null,null,null,null,null,0,null,0]
[1,0,0,0,24,"سلمى اوبلال","الثانية 1",null,null,null,null,null,null,null,null,null,null,null,null,null,null,null,null,null,null,null,null,null,null,null,null,null,null,null,null,null,null,null,0,null,0]
[1,0,0,0,25,"عماد صبري","الثانية 1",null,null,null,null,null,null,null,null,null,null,null,null,null,null,null,null,null,null,null,null,null,null,null,null,null,null,null,null,null,null,null,0,null,0]
[1,0,0,1,26,"سكينة بوكريم","الثانية 1",null,null,null,null,null,null,null,1,null,null,null,null,null,null,null,null,null,null,null,null,null,null,null,null,null,null,null,null,null,null,null,0,null,1]
[1,0,0,0,27,"سفيان زاعكور","الثانية 1",null,null,null,null,null,null,null,null,null,null,null,null,null,null,null,null,null,null,null,null,null,null,null,null,null,null,null,null,null,null,null,0,null,0]
[1,0,0,8,28,"كوثر فكري","الثانية 1",null,null,3,1,null,null,null,null,2,null,1,1,null,null,null,null,null,null,null,null,null,null,null,null,null,null,null,null,null,null,null,0,null,8]
[1,0,0,0,29,"منال مشروح","الثانية 1",null,null,null,null,null,null,null,null,null,null,null,null,null,null,null,null,null,null,null,null,null,null,null,null,null,null,null,null,null,null,null,0,null,0]
[1,0,0,0,30,"انس أقرقاب","الثانية 1",null,null,null,null,null,null,null,null,null,null,null,null,null,null,null,null,null,null,null,null,null,null,null,null,null,null,null,null,null,null,null,0,null,0]
[1,0,0,2,31,"نبيلة بري","الثانية 1",null,1,null,null,null,null,null,null,1,null,null,null,null,null,null,null,null,null,null,null,null,null,null,null,null,null,null,null,null,null,null,0,null,2]
[1,0,0,0,32,"انور فوزي","الثانية 1",null,null,null,null,null,null,null,null,null,null,null,null,null,null,null,null,null,null,null,null,null,null,null,null,null,null,null,null,null,null,null,0,null,0]
[1,0,0,1,33,"حسناء السوني","الثانية 1",null,null,null,null,null,null,null,null,null,null,1,null,null,null,null,null,null,null,null,null,null,null,null,null,null,null,null,null,null,null,null,0,null,1]
[1,0,0,0,34,"ملاك لحسناوي","الثانية 1",null,null,null,null,null,null,null,null,null,null,null,null,null,null,null,null,null,null,null,null,null,null,null,null,null,null,null,null,null,null,null,0,null,0]
[1,0,0,0,35,"حسناء زنزار","الثانية 1",null,null,null,null,null,null,null,null,null,null,null,null,null,null,null,null,null,null,null,null,null,null,null,null,null,null,null,null,null,null,null,0,null,0]
[1,0,0,2,36,"محمد حاكم","الثانية 1",null,null,null,null,null,null,null,1,1,null,null,null,null,null,null,null,null,null,null,null,null,null,null,null,null,null,null,null,null,null,null,0,null,2]
[1,0,0,2,37,"عبد الصمد الغبري","الثانية 1",null,null,null,null,null,null,null,null,1,null,null,1,null,null,null,null,null,null,null,null,null,null,null,null,null,null,null,null,null,null,null,0,null,2]
[1,0,0,0,38,"امين الصغير","الثانية 1",null,null,null,null,null,null,null,null,null,null,null,null,null,null,null,null,null,null,null,null,null,null,null,null,null,null,null,null,null,null,null,0,null,0]
[null,0,0,0,39,"","",null,null,null,null,null,null,null,null,null,null,null,null,null,null,null,null,null,null,null,null,null,null,null,null,null,null,null,null,null,null,null,0,null,0]
[null,0,0,0,40,"","",null,null,null,null,null,null,null,null,null,null,null,null,null,null,null,null,null,null,null,null,null,null,null,null,null,null,null,null,null,null,null,0,null,0]
[null,0,0,0,"","","",null,null,null,null,null,null,null,null,null,null,null,null,null,null,null,null,null,null,null,null,null,null,null,null,null,null,null,null,null,null,null,0,null,0]
[null,{"$f":"AM54","v":0},0,0,"","","",null,null,null,null,null,null,null,null,null,null,null,null,null,null,null,null,null,null,null,null,null,null,null,null,null,null,null,null,null,null,null,0,null,0]
[null,0,0,0,"","","",null,null,null,null,null,null,null,null,null,null,null,null,null,null,null,null,null,null,null,null,null,null,null,null,null,null,null,null,null,null,null,0,null,0]
[null,0,0,0,"","","",null,null,null,null,null,null,null,null,null,null,null,null,null,null,null,null,null,null,null,null,null,null,null,null,null,null,null,null,null,null,null,0,null,0]
[null,0,0,0,"","","",null,null,null,null,null,null,null,null,null,null,null,null,null,null,null,null,null,null,null,null,null,null,null,null,null,null,null,null,null,null,null,0,null,0]
[null,0,0,0,"","","",null,null,null,null,null,null,null,null,null,null,null,null,null,null,null,null,null,null,null,null,null,null,null,null,null,null,null,null,null,null,null,0,null,0]
[null,0,0,0,"","","",null,null,null,null,null,null,null,null,null,null,null,null,null,null,null,null,null,null,null,null,null,null,null,null,null,null,null,null,null,null,null,0,null,0]
[null,0,0,0,"","","",null,null,null,null,null,null,null,null,null,null,null,null,null,null,null,null,null,null,null,null,null,null,null,null,null,null,null,null,null,null,null,0,null,0]
[null,0,0,0,"","","",null,null,null,null,null,null,null,null,null,null,null,null,null,null,null,null,null,null,null,null,null,null,null,null,null,null,null,null,null,null,null,0,null,0]
[null,0,0,0,"","","",null,null,null,null,null,null,null,null,null,null,null,null,null,null,null,null,null,null,null,null,null,null,null,null,null,null,null,null,null,null,null,0,null,0]
[]
[null,null,null,null,null,null,null,null,null,null,null,null,null,null,null,null,"الثانية 2"]
[]
[]
[]
[]
[null,null,null,null,"رقم\nالتلميذ","الإسم و النسب","القسم","الأيـــــــــــــــــــــــــــــــــــــــــــــــــــــــــــــــــــــــــــام"]
[null,null,null,null,null,null,null,"01","02","03","04","05","06","07","08","09","10","11","12","13",14,"15","16","17","18","19","20","21","22","23","24","25","26","27","28","29","30","31"]
[null,null,null,null,null,null,null,null,null,3,4,5,6,7,8,9,10,11,12,13,14,15,16,17,18,19,20,21,22,23,24,25,26,27,28,29,30,31,null,null,31]
[2,0,0,1,1,"ايوب رباح ","الثانية 2",null,1,null,null,null,null,null,null,null,null,null,null,null,null,null,null,null,null,null,null,null,null,null,null,null,null,null,null,null,null,null,{"$f":"IF(RIGHT(H72)=\"j\",LEFT(H72))+IF(RIGHT(I72)=\"j\",LEFT(I72))+IF(RIGHT(J72)=\"j\",LEFT(J72))+IF(RIGHT(K72)=\"j\",LEFT(K72))+IF(RIGHT(L72)=\"j\",LEFT(L72))+IF(RIGHT(M72)=\"j\",LEFT(M72))+IF(RIGHT(N72)=\"j\",LEFT(N72))+IF(RIGHT(O72)=\"j\",LEFT(O72))+IF(RIGHT(P72)=\"j\",LEFT(P72))+IF(RIGHT(Q72)=\"j\",LEFT(Q72))+IF(RIGHT(R72)=\"j\",LEFT(R72))+IF(RIGHT(S72)=\"j\",LEFT(S72))+IF(RIGHT(T72)=\"j\",LEFT(T72))+IF(RIGHT(U72)=\"j\",LEFT(U72))+IF(RIGHT(V72)=\"j\",LEFT(V72))+IF(RIGHT(W72)=\"j\",LEFT(W72))+IF(RIGHT(X72)=\"j\",LEFT(X72))+IF(RIGHT(Y72)=\"j\",LEFT(Y72))+IF(RIGHT(Z72)=\"j\",LEFT(Z72))+IF(RIGHT(AA72)=\"j\",LEFT(AA72))+IF(RIGHT(AB72)=\"j\",LEFT(AB72))+IF(RIGHT(AC72)=\"j\",LEFT(AC72))+IF(RIGHT(AD72)=\"j\",LEFT(AD72))+IF(RIGHT(AE72)=\"j\",LEFT(AE72))+IF(RIGHT(AF72)=\"j\",LEFT(AF72))+IF(RIGHT(AG72)=\"j\",LEFT(AG72))+IF(RIGHT(AH72)=\"j\",LEFT(AH72))+IF(RIGHT(AI72)=\"j\",LEFT(AI72))+IF(RIGHT(AJ72)=\"j\",LEFT(AJ72))+IF(RIGHT(AK72)=\"j\",LEFT(AK72))+IF(RIGHT(AL72)=\"j\",LEFT(AL72))","v":0},null,{"$f":"SUM(H72:AL72)","v":1}]
[2,0,0,0,2,"محمد همام الملكي","الثانية 2",null,null,null,null,null,null,null,null,null,null,null,null,null,null,null,null,null,null,null,null,null,null,null,null,null,null,null,null,null,null,null,0,null,0]
[2,0,0,0,3,"عبد الرحمان حروش","الثانية 2",null,null,null,null,null,null,null,null,null,null,null,null,null,null,null,null,null,null,null,null,null,null,null,null,null,null,null,null,null,null,null,0,null,0]
[2,0,0,0,4,"سعيد كراد","الثانية 2",null,null,null,null,null,null,null,null,null,null,null,null,null,null,null,null,null,null,null,null,null,null,null,null,null,null,null,null,null,null,null,0,null,0]
[2,0,0,3,5,"لمياء ايت بن عمر","الثانية 2",null,null,null,null,null,null,null,null,null,null,null,3,null,null,null,null,null,null,null,null,null,null,null,null,null,null,null,null,null,null,null,0,null,3]
[2,0,0,0,6,"نوال بوزيرى","الثانية 2",null,null,null,null,null,null,null,null,null,null,null,null,null,null,null,null,null,null,null,null,null,null,null,null,null,null,null,null,null,null,null,0,null,0]
[2,0,0,5,7,"محمد ايت تكنوت","الثانية 2",null,1,null,null,null,null,null,null,null,1,null,3,null,null,null,null,null,null,null,null,null,null,null,null,null,null,null,null,null,null,null,0,null,5]
[2,0,0,1,8,"كريمة ايت الطيب","الثانية 2",null,1,null,null,null,null,null,null,null,null,null,null,null,null,null,null,null,null,null,null,null,null,null,null,null,null,null,null,null,null,null,0,null,1]
[2,0,0,0,9,"هجر الادريسي","الثانية 2",null,null,null,null,null,null,null,null,null,null,null,null,null,null,null,null,null,null,null,null,null,null,null,null,null,null,null,null,null,null,null,0,null,0]
[2,0,0,1,10,"سلمى عاودو","الثانية 2",null,1,null,null,null,null,null,null,null,null,null,null,null,null,null,null,null,null,null,null,null,null,null,null,null,null,null,null,null,null,null,0,null,1]
[2,0,0,0,11,"سارة اخيري","الثانية 2",null,null,null,null,null,null,null,null,null,null,null,null,null,null,null,null,null,null,null,null,null,null,null,null,null,null,null,null,null,null,null,0,null,0]
[2,0,0,2,12,"المهدي ايت بولقايد","الثانية 2",null,null,null,null,null,null,null,null,null,1,null,1,null,null,null,null,null,null,null,null,null,null,null,null,null,null,null,null,null,null,null,0,null,2]
[2,0,0,0,13,"اسامة ساف","الثانية 2",null,null,null,null,null,null,null,null,null,null,null,null,null,null,null,null,null,null,null,null,null,null,null,null,null,null,null,null,null,null,null,0,null,0]
[2,0,0,0,14,"عزيزة لمرابط","الثانية 2",null,null,null,null,null,null,null,null,null,null,null,null,null,null,null,null,null,null,null,null,null,null,null,null,null,null,null,null,null,null,null,0,null,0]
[2,0,0,8,15,"وهيبة محسني","الثانية 2",null,1,null,null,null,null,null,1,null,3,null,3,null,null,null,null,null,null,null,null,null,null,null,null,null,null,null,null,null,null,null,0,null,8]
[2,0,0,0,16,"فاطمة الزهراء ازلالي","الثانية 2",null,null,null,null,null,null,null,null,null,null,null,null,null,null,null,null,null,null,null,null,null,null,null,null,null,null,null,null,null,null,null,0,null,0]
[2,0,0,0,17,"دنيا عمراني","الثانية 2",null,null,null,null,null,null,null,null,null,null,null,null,null,null,null,null,null,null,null,null,null,null,null,null,null,null,null,null,null,null,null,0,null,0]
[2,0,0,0,18,"لبنى لغريس","الثانية 2",null,null,null,null,null,null,null,null,null,null,null,null,null,null,null,null,null,null,null,null,null,null,null,null,null,null,null,null,null,null,null,0,null,0]
[2,0,0,0,19,"شيماء نفاح","الثانية 2",null,null,null,null,null,null,null,null,null,null,null,null,null,null,null,null,null,null,null,null,null,null,null,null,null,null,null,null,null,null,null,0,null,0]
[2,0,0,0,20,"اميمة اد عبد الله","الثانية 2",null,null,null,null,null,null,null,null,null,null,null,null,null,null,null,null,null,null,null,null,null,null,null,null,null,null,null,null,null,null,null,0,null,0]
[2,0,0,0,21,"اسامة برايس","الثانية 2",null,null,null,null,null,null,null,null,null,null,null,null,null,null,null,null,null,null,null,null,null,null,null,null,null,null,null,null,null,null,null,0,null,0]
[2,0,0,0,22,"سمرة قاسي","الثانية 2",null,null,null,null,null,null,null,null,null,null,null,null,null,null,null,null,null,null,null,null,null,null,null,null,null,null,null,null,null,null,null,0,null,0]
[2,0,0,2,23,"صفاء الزهيري","الثانية 2",null,null,null,null,null,null,null,null,null,2,null,null,null,null,null,null,null,null,null,null,null,null,null,null,null,null,null,null,null,null,null,0,null,2]
[2,0,0,4,24,"ميساء الداودي","الثانية 2",null,1,null,null,null,null,null,null,null,null,null,3,null,null,null,null,null,null,null,null,null,null,null,null,null,null,null,null,null,null,null,0,null,4]
[2,0,0,0,25,"محمد الخضير","الثانية 2",null,null,null,null,null,null,null,null,null,null,null,null,null,null,null,null,null,null,null,null,null,null,null,null,null,null,null,null,null,null,null,0,null,0]
[2,0,0,2,26,"ربيع ايت ابراهيم اعلي","الثانية 2",null,1,null,null,null,null,null,null,null,null,null,1,null,null,null,null,null,null,null,null,null,null,null,null,null,null,null,null,null,null,null,0,null,2]
[2,1,0,4,27,"رضا ابيهي","الثانية 2",null,null,null,"1j",null,null,null,null,1,2,null,1,null,null,null,null,null,null,null,null,null,null,null,null,null,null,null,null,null,null,null,1,null,4]
[2,0,0,1,28,"عصام مراد","الثانية 2",null,1,null,null,null,null,null,null,null,null,null,null,null,null,null,null,null,null,null,null,null,null,null,null,null,null,null,null,null,null,null,0,null,1]
[2,1,0,0,29,"منال ويحيى","الثانية 2",null,null,null,"1j",null,null,null,null,null,null,null,null,null,null,null,null,null,null,null,null,null,null,null,null,null,null,null,null,null,null,null,1,null,0]
[2,0,0,0,30,"عبد الله بجادي","الثانية 2",null,null,null,null,null,null,null,null,null,null,null,null,null,null,null,null,null,null,null,null,null,null,null,null,null,null,null,null,null,null,null,0,null,0]
[2,0,0,1,31,"محمد الززولي","الثانية 2",null,null,null,null,null,null,null,null,null,null,null,1,null,null,null,null,null,null,null,null,null,null,null,null,null,null,null,null,null,null,null,0,null,1]
[2,0,0,0,32,"المهدي بن القائد","الثانية 2",null,null,null,null,null,null,null,null,null,null,null,null,null,null,null,null,null,null,null,null,null,null,null,null,null,null,null,null,null,null,null,0,null,0]
[2,0,0,0,33,"يوسف بوخالف","الثانية 2",null,null,null,null,null,null,null,null,null,null,null,null,null,null,null,null,null,null,null,null,null,null,null,null,null,null,null,null,null,null,null,0,null,0]
[2,0,0,0,34,"حمزة امصدر","الثانية 2",null,null,null,null,null,null,null,null,null,null,null,null,null,null,null,null,null,null,null,null,null,null,null,null,null,null,null,null,null,null,null,0,null,0]
[2,0,0,1,35,"وصال حوزي","الثانية 2",null,null,null,null,null,null,null,null,null,1,null,null,null,null,null,null,null,null,null,null,null,null,null,null,null,null,null,null,null,null,null,0,null,1]
[2,0,0,0,36,"احمد اجماعن","الثانية 2",null,null,null,null,null,null,null,null,null,null,null,null,null,null,null,null,null,null,null,null,null,null,null,null,null,null,null,null,null,null,null,0,null,0]
[2,0,0,6,37,"سارة جيتي","الثانية 2",null,null,null,null,null,null,null,null,2,1,1,2,null,null,null,null,null,null,null,null,null,null,null,null,null,null,null,null,null,null,null,0,null,6]
[null,0,0,0,38,"","",null,null,null,null,null,null,null,null,null,null,null,null,null,null,null,null,null,null,null,null,null,null,null,null,null,null,null,null,null,null,null,0,null,0]
[null,0,0,0,39,"","",null,null,null,null,null,null,null,null,null,null,null,null,null,null,null,null,null,null,null,null,null,null,null,null,null,null,null,null,null,null,null,0,null,0]
[null,0,0,0,40,"","",null,null,null,null,null,null,null,null,null,null,null,null,null,null,null,null,null,null,null,null,null,null,null,null,null,null,null,null,null,null,null,0,null,0]
[null,0,0,0,41,"","",null,null,null,null,null,null,null,null,null,null,null,null,null,null,null,null,null,null,null,null,null,null,null,null,null,null,null,null,null,null,null,0,null,0]
[null,0,0,0,"","","",null,null,null,null,null,null,null,null,null,null,null,null,null,null,null,null,null,null,null,null,null,null,null,null,null,null,null,null,null,null,null,0,null,0]
[null,0,0,0,"","","",null,null,null,null,null,null,null,null,null,null,null,null,null,null,null,null,null,null,null,null,null,null,null,null,null,null,null,null,null,null,null,0,null,0]
[null,0,0,0,"","","",null,null,null,null,null,null,null,null,null,null,null,null,null,null,null,null,null,null,null,null,null,null,null,null,null,null,null,null,null,null,null,0,null,0]
[null,0,0,0,"","","",null,null,null,null,null,null,null,null,null,null,null,null,null,null,null,null,null,null,null,null,null,null,null,null,null,null,null,null,null,null,null,0,null,0]
[null,0,0,0,"","","",null,null,null,null,null,null,null,null,null,null,null,null,null,null,null,null,null,null,null,null,null,null,null,null,null,null,null,null,null,null,null,0,null,0]
[null,{"$f":"AM118","v":0},0,0,"","","",null,null,null,null,null,null,null,null,null,null,null,null,null,null,null,null,null,null,null,null,null,null,null,null,null,null,null,null,null,null,null,0,null,0]
[null,0,0,0,"","","",null,null,null,null,null,null,null,null,null,null,null,null,null,null,null,null,null,null,null,null,null,null,null,null,null,null,null,null,null,null,null,0,null,0]
[null,0,0,0,"","","",null,null,null,null,null,null,null,null,null,null,null,null,null,null,null,null,null,null,null,null,null,null,null,null,null,null,null,null,null,null,null,0,null,0]
[null,0,0,0,"","","",null,null,null,null,null,null,null,null,null,null,null,null,null,null,null,null,null,null,null,null,null,null,null,null,null,null,null,null,null,null,null,0,null,0]
[null,{"$f":"AM122","v":0},{"$f":"AN122","v":0},{"$f":"AO122","v":0}]
[null,0,0,0,null,null,null,null,null,null,null,null,null,null,null,null,"الثانية 3"]
[null,0,0,0]
[null,0,0,0]
[null,0,0,0]
[null,0,0,0]
[null,0,0,0,"رقم\nالتلميذ","الإسم و النسب","القسم","الأيـــــــــــــــــــــــــــــــــــــــــــــــــــــــــــــــــــــــــــام"]
[null,0,0,"31",null,null,null,"01","02","03","04","05","06","07","08","09","10","11","12","13",14,"15","16","17","18","19","20","21","22","23","24","25","26","27","28","29","30","31",null,null,"31"]
[null,0,0,31,null,null,null,null,null,3,4,5,6,7,8,9,10,11,12,13,14,15,16,17,18,19,20,21,22,23,24,25,26,27,28,29,30,31,null,null,31]
[3,0,0,0,1,"نور الدين فراح","الثانية 3",null,null,null,null,null,null,null,null,null,null,null,null,null,null,null,null,null,null,null,null,null,null,null,null,null,null,null,null,null,null,null,{"$f":"IF(RIGHT(H131)=\"j\",LEFT(H131))+IF(RIGHT(I131)=\"j\",LEFT(I131))+IF(RIGHT(J131)=\"j\",LEFT(J131))+IF(RIGHT(K131)=\"j\",LEFT(K131))+IF(RIGHT(L131)=\"j\",LEFT(L131))+IF(RIGHT(M131)=\"j\",LEFT(M131))+IF(RIGHT(N131)=\"j\",LEFT(N131))+IF(RIGHT(O131)=\"j\",LEFT(O131))+IF(RIGHT(P131)=\"j\",LEFT(P131))+IF(RIGHT(Q131)=\"j\",LEFT(Q131))+IF(RIGHT(R131)=\"j\",LEFT(R131))+IF(RIGHT(S131)=\"j\",LEFT(S131))+IF(RIGHT(T131)=\"j\",LEFT(T131))+IF(RIGHT(U131)=\"j\",LEFT(U131))+IF(RIGHT(V131)=\"j\",LEFT(V131))+IF(RIGHT(W131)=\"j\",LEFT(W131))+IF(RIGHT(X131)=\"j\",LEFT(X131))+IF(RIGHT(Y131)=\"j\",LEFT(Y131))+IF(RIGHT(Z131)=\"j\",LEFT(Z131))+IF(RIGHT(AA131)=\"j\",LEFT(AA131))+IF(RIGHT(AB131)=\"j\",LEFT(AB131))+IF(RIGHT(AC131)=\"j\",LEFT(AC131))+IF(RIGHT(AD131)=\"j\",LEFT(AD131))+IF(RIGHT(AE131)=\"j\",LEFT(AE131))+IF(RIGHT(AF131)=\"j\",LEFT(AF131))+IF(RIGHT(AG131)=\"j\",LEFT(AG131))+IF(RIGHT(AH131)=\"j\",LEFT(AH131))+IF(RIGHT(AI131)=\"j\",LEFT(AI131))+IF(RIGHT(AJ131)=\"j\",LEFT(AJ131))+IF(RIGHT(AK131)=\"j\",LEFT(AK131))+IF(RIGHT(AL131)=\"j\",LEFT(AL131))","v":0},null,{"$f":"SUM(H131:AL131)","v":0}]
[3,0,0,0,2,"ناصر مودن","الثانية 3",null,null,null,null,null,null,null,null,null,null,null,null,null,null,null,null,null,null,null,null,null,null,null,null,null,null,null,null,null,null,null,0,null,0]
[3,0,0,0,3,"يوسف تابو","الثانية 3",null,null,null,null,null,null,null,null,null,null,null,null,null,null,null,null,null,null,null,null,null,null,null,null,null,null,null,null,null,null,null,0,null,0]
[3,0,0,0,4,"حسام مخلوفي","الثانية 3",null,null,null,null,null,null,null,null,null,null,null,null,null,null,null,null,null,null,null,null,null,null,null,null,null,null,null,null,null,null,null,0,null,0]
[3,0,0,2,5,"نهيلة بن عزي","الثانية 3",null,null,null,2,null,null,null,null,null,null,null,null,null,null,null,null,null,null,null,null,null,null,null,null,null,null,null,null,null,null,null,0,null,2]
[3,0,0,0,6,"عبد الرحمان بوشهار","الثانية 3",null,null,null,null,null,null,null,null,null,null,null,null,null,null,null,null,null,null,null,null,null,null,null,null,null,null,null,null,null,null,null,0,null,0]
[3,0,0,6,7,"منار السلمي","الثانية 3",null,null,3,null,null,null,null,3,null,null,null,null,null,null,null,null,null,null,null,null,null,null,null,null,null,null,null,null,null,null,null,0,null,6]
[3,0,0,0,8,"نسيمة حمديدو","الثانية 3",null,null,null,null,null,null,null,null,null,null,null,null,null,null,null,null,null,null,null,null,null,null,null,null,null,null,null,null,null,null,null,0,null,0]
[3,0,0,0,9,"نور الهدى الذهبي","الثانية 3",null,null,null,null,null,null,null,null,null,null,null,null,null,null,null,null,null,null,null,null,null,null,null,null,null,null,null,null,null,null,null,0,null,0]
[3,0,0,0,10,"فاطمة الزهراء ايوبي","الثانية 3",null,null,null,null,null,null,null,null,null,null,null,null,null,null,null,null,null,null,null,null,null,null,null,null,null,null,null,null,null,null,null,0,null,0]
[3,0,0,0,11,"ليلى بوزرب","الثانية 3",null,null,null,null,null,null,null,null,null,null,null,null,null,null,null,null,null,null,null,null,null,null,null,null,null,null,null,null,null,null,null,0,null,0]
[3,0,0,0,12,"محمد لقسوس","الثانية 3",null,null,null,null,null,null,null,null,null,null,null,null,null,null,null,null,null,null,null,null,null,null,null,null,null,null,null,null,null,null,null,0,null,0]
[3,0,0,0,13,"محمد البهاوي","الثانية 3",null,null,null,null,null,null,null,null,null,null,null,null,null,null,null,null,null,null,null,null,null,null,null,null,null,null,null,null,null,null,null,0,null,0]
[3,0,0,0,14,"عائشة وعزيز","الثانية 3",null,null,null,null,null,null,null,null,null,null,null,null,null,null,null,null,null,null,null,null,null,null,null,null,null,null,null,null,null,null,null,0,null,0]
[3,{"$f":"AM145","v":0},{"$f":"AN145","v":0},{"$f":"AO145","v":0},15,"عبد الله  الشرقاوي","الثانية 3",null,null,null,null,null,null,null,null,null,null,null,null,null,null,null,null,null,null,null,null,null,null,null,null,null,null,null,null,null,null,null,0,null,0]
[3,0,0,0,16,"حسن الفاضلي","الثانية 3",null,null,null,null,null,null,null,null,null,null,null,null,null,null,null,null,null,null,null,null,null,null,null,null,null,null,null,null,null,null,null,0,null,0]
[3,0,0,0,17,"مولود اشطبي","الثانية 3",null,null,null,null,null,null,null,null,null,null,null,null,null,null,null,null,null,null,null,null,null,null,null,null,null,null,null,null,null,null,null,0,null,0]
[3,0,0,0,18,"عبد الصمد الغازي","الثانية 3",null,null,null,null,null,null,null,null,null,null,null,null,null,null,null,null,null,null,null,null,null,null,null,null,null,null,null,null,null,null,null,0,null,0]
[3,0,0,0,19,"فاطمة الزهراء البوعمراني","الثانية 3",null,null,null,null,null,null,null,null,null,null,null,null,null,null,null,null,null,null,null,null,null,null,null,null,null,null,null,null,null,null,null,0,null,0]
[3,0,0,0,20,"سميرة تافغي","الثانية 3",null,null,null,null,null,null,null,null,null,null,null,null,null,null,null,null,null,null,null,null,null,null,null,null,null,null,null,null,null,null,null,0,null,0]
[3,0,0,4,21,"دعاء الرحمان الرمسالي","الثانية 3",null,null,null,2,null,null,null,null,null,null,null,2,null,null,null,null,null,null,null,null,null,null,null,null,null,null,null,null,null,null,null,0,null,4]
[3,0,0,0,22,"اسماء أبو كَماز","الثانية 3",null,null,null,null,null,null,null,null,null,null,null,null,null,null,null,null,null,null,null,null,null,null,null,null,null,null,null,null,null,null,null,0,null,0]
[3,0,0,0,23,"سلمى امزيل","الثانية 3",null,null,null,null,null,null,null,null,null,null,null,null,null,null,null,null,null,null,null,null,null,null,null,null,null,null,null,null,null,null,null,0,null,0]
[3,0,0,0,24,"مريم ارداد","الثانية 3",null,null,null,null,null,null,null,null,null,null,null,null,null,null,null,null,null,null,null,null,null,null,null,null,null,null,null,null,null,null,null,0,null,0]
[3,0,0,0,25,"رضى التعقيلي","الثانية 3",null,null,null,null,null,null,null,null,null,null,null,null,null,null,null,null,null,null,null,null,null,null,null,null,null,null,null,null,null,null,null,0,null,0]
[3,0,0,0,26,"رقية سعودي","الثانية 3",null,null,null,null,null,null,null,null,null,null,null,null,null,null,null,null,null,null,null,null,null,null,null,null,null,null,null,null,null,null,null,0,null,0]
[3,0,0,0,27,"فاطمة الزهراء الرياضي","الثانية 3",null,null,null,null,null,null,null,null,null,null,null,null,null,null,null,null,null,null,null,null,null,null,null,null,null,null,null,null,null,null,null,0,null,0]
[3,0,0,0,28,"ايوب فرجي","الثانية 3",null,null,null,null,null,null,null,null,null,null,null,null,null,null,null,null,null,null,null,null,null,null,null,null,null,null,null,null,null,null,null,0,null,0]
[3,0,0,0,29,"محمد الازهري","الثانية 3",null,null,null,null,null,null,null,null,null,null,null,null,null,null,null,null,null,null,null,null,null,null,null,null,null,null,null,null,null,null,null,0,null,0]
[3,0,0,7,30,"محمد شرقي","الثانية 3",null,2,null,1,null,null,1,1,null,1,null,1,null,null,null,null,null,null,null,null,null,null,null,null,null,null,null,null,null,null,null,0,null,7]
[3,0,0,0,31,"فاطمة الزهرة الشافعي","الثانية 3",null,null,null,null,null,null,null,null,null,null,null,null,null,null,null,null,null,null,null,null,null,null,null,null,null,null,null,null,null,null,null,0,null,0]
[3,0,0,0,32,"ابتسام الكرش","الثانية 3",null,null,null,null,null,null,null,null,null,null,null,null,null,null,null,null,null,null,null,null,null,null,null,null,null,null,null,null,null,null,null,0,null,0]
[3,0,0,0,33,"بوبكر الطاهري","الثانية 3",null,null,null,null,null,null,null,null,null,null,null,null,null,null,null,null,null,null,null,null,null,null,null,null,null,null,null,null,null,null,null,0,null,0]
[3,0,0,3,34,"محمد امين ايت حساين","الثانية 3",null,null,1,1,null,null,null,1,null,null,null,null,null,null,null,null,null,null,null,null,null,null,null,null,null,null,null,null,null,null,null,0,null,3]
[3,0,0,1,35,"حكيمة اكريس","الثانية 3",null,1,null,null,null,null,null,null,null,null,null,null,null,null,null,null,null,null,null,null,null,null,null,null,null,null,null,null,null,null,null,0,null,1]
[3,0,0,2,36,"احلام اعبيبوش","الثانية 3",null,null,null,null,null,null,null,null,null,null,null,2,null,null,null,null,null,null,null,null,null,null,null,null,null,null,null,null,null,null,null,0,null,2]
[null,0,0,0,37,"لبنى محتي","الثانية 3",null,null,null,null,null,null,null,null,null,null,null,null,null,null,null,null,null,null,null,null,null,null,null,null,null,null,null,null,null,null,null,0,null,0]
[null,0,0,0,38,"اسية الدعلوس","الثانية 3",null,null,null,null,null,null,null,null,null,null,null,null,null,null,null,null,null,null,null,null,null,null,null,null,null,null,null,null,null,null,null,0,null,0]
[null,0,0,0,39,"","",null,null,null,null,null,null,null,null,null,null,null,null,null,null,null,null,null,null,null,null,null,null,null,null,null,null,null,null,null,null,null,0,null,0]
[null,0,0,0,40,"","",null,null,null,null,null,null,null,null,null,null,null,null,null,null,null,null,null,null,null,null,null,null,null,null,null,null,null,null,null,null,null,0,null,0]
[null,0,0,0,41,"","",null,null,null,null,null,null,null,null,null,null,null,null,null,null,null,null,null,null,null,null,null,null,null,null,null,null,null,null,null,null,null,0,null,0]
[null,0,0,0,42,"","",null,null,null,null,null,null,null,null,null,null,null,null,null,null,null,null,null,null,null,null,null,null,null,null,null,null,null,null,null,null,null,0,null,0]
[null,0,0,0,"","","",null,null,null,null,null,null,null,null,null,null,null,null,null,null,null,null,null,null,null,null,null,null,null,null,null,null,null,null,null,null,null,0,null,0]
[null,0,0,0,"","","",null,null,null,null,null,null,null,null,null,null,null,null,null,null,null,null,null,null,null,null,null,null,null,null,null,null,null,null,null,null,null,0,null,0]
[null,0,0,0,"","","",null,null,null,null,null,null,null,null,null,null,null,null,null,null,null,null,null,null,null,null,null,null,null,null,null,null,null,null,null,null,null,0,null,0]
[null,0,0,0,"","","",null,null,null,null,null,null,null,null,null,null,null,null,null,null,null,null,null,null,null,null,null,null,null,null,null,null,null,null,null,null,null,0,null,0]
[null,0,0,0,"","","",null,null,null,null,null,null,null,null,null,null,null,null,null,null,null,null,null,null,null,null,null,null,null,null,null,null,null,null,null,null,null,0,null,0]
[null,0,0,0,"","","",null,null,null,null,null,null,null,null,null,null,null,null,null,null,null,null,null,null,null,null,null,null,null,null,null,null,null,null,null,null,null,0,null,0]
[null,0,0,0,"","","",null,null,null,null,null,null,null,null,null,null,null,null,null,null,null,null,null,null,null,null,null,null,null,null,null,null,null,null,null,null,null,0,null,0]
[null,0,0,0,"","","",null,null,null,null,null,null,null,null,null,null,null,null,null,null,null,null,null,null,null,null,null,null,null,null,null,null,null,null,null,null,null,0,null,0]
[null,0,0,0]
[null,0,0,0,null,null,null,null,null,null,null,null,null,null,null,null,"الثانية 4"]
[null,0,0,0]
[null,0,0,0]
[null,0,0,0]
[null,0,0,0]
[null,0,0,0,"رقم\nالتلميذ","الإسم و النسب","القسم","الأيـــــــــــــــــــــــــــــــــــــــــــــــــــــــــــــــــــــــــــام"]
[null,0,0,"31",null,null,null,"01","02","03","04","05","06","07","08","09","10","11","12","13",14,"15","16","17","18","19","20","21","22","23","24","25","26","27","28","29","30","31",null,null,"31"]
[null,0,0,31,null,null,null,null,null,3,4,5,6,7,8,9,10,11,12,13,14,15,16,17,18,19,20,21,22,23,24,25,26,27,28,29,30,31,null,null,31]
[4,0,0,1,1,"ابراهيم بلفارس","الثانية 4",null,null,null,1,null,null,null,null,null,null,null,null,null,null,null,null,null,null,null,null,null,null,null,null,null,null,null,null,null,null,null,{"$f":"IF(RIGHT(H190)=\"j\",LEFT(H190))+IF(RIGHT(I190)=\"j\",LEFT(I190))+IF(RIGHT(J190)=\"j\",LEFT(J190))+IF(RIGHT(K190)=\"j\",LEFT(K190))+IF(RIGHT(L190)=\"j\",LEFT(L190))+IF(RIGHT(M190)=\"j\",LEFT(M190))+IF(RIGHT(N190)=\"j\",LEFT(N190))+IF(RIGHT(O190)=\"j\",LEFT(O190))+IF(RIGHT(P190)=\"j\",LEFT(P190))+IF(RIGHT(Q190)=\"j\",LEFT(Q190))+IF(RIGHT(R190)=\"j\",LEFT(R190))+IF(RIGHT(S190)=\"j\",LEFT(S190))+IF(RIGHT(T190)=\"j\",LEFT(T190))+IF(RIGHT(U190)=\"j\",LEFT(U190))+IF(RIGHT(V190)=\"j\",LEFT(V190))+IF(RIGHT(W190)=\"j\",LEFT(W190))+IF(RIGHT(X190)=\"j\",LEFT(X190))+IF(RIGHT(Y190)=\"j\",LEFT(Y190))+IF(RIGHT(Z190)=\"j\",LEFT(Z190))+IF(RIGHT(AA190)=\"j\",LEFT(AA190))+IF(RIGHT(AB190)=\"j\",LEFT(AB190))+IF(RIGHT(AC190)=\"j\",LEFT(AC190))+IF(RIGHT(AD190)=\"j\",LEFT(AD190))+IF(RIGHT(AE190)=\"j\",LEFT(AE190))+IF(RIGHT(AF190)=\"j\",LEFT(AF190))+IF(RIGHT(AG190)=\"j\",LEFT(AG190))+IF(RIGHT(AH190)=\"j\",LEFT(AH190))+IF(RIGHT(AI190)=\"j\",LEFT(AI190))+IF(RIGHT(AJ190)=\"j\",LEFT(AJ190))+IF(RIGHT(AK190)=\"j\",LEFT(AK190))+IF(RIGHT(AL190)=\"j\",LEFT(AL190))","v":0},null,{"$f":"SUM(H190:AL190)","v":1}]
[4,0,0,0,2,"زكرياء لسان الدين","الثانية 4",null,null,null,null,null,null,null,null,null,null,null,null,null,null,null,null,null,null,null,null,null,null,null,null,null,null,null,null,null,null,null,0,null,0]
[4,0,0,1,3,"هيبة الروماني","الثانية 4",null,null,null,null,null,null,null,null,null,null,null,1,null,null,null,null,null,null,null,null,null,null,null,null,null,null,null,null,null,null,null,0,null,1]
[4,0,0,0,4,"كوثر مرزوقي","الثانية 4",null,null,null,null,null,null,null,null,null,null,null,null,null,null,null,null,null,null,null,null,null,null,null,null,null,null,null,null,null,null,null,0,null,0]
[4,0,0,0,5,"صفاء ابن السعدية","الثانية 4",null,null,null,null,null,null,null,null,null,null,null,null,null,null,null,null,null,null,null,null,null,null,null,null,null,null,null,null,null,null,null,0,null,0]
[4,0,0,1,6,"عبد الرحيم ارخسيسن","الثانية 4",null,null,null,null,null,null,null,1,null,null,null,null,null,null,null,null,null,null,null,null,null,null,null,null,null,null,null,null,null,null,null,0,null,1]
[4,3,0,0,7,"عائشة ايت قدور","الثانية 4",null,null,null,"3j",null,null,null,null,null,null,null,null,null,null,null,null,null,null,null,null,null,null,null,null,null,null,null,null,null,null,null,3,null,0]
[4,0,0,0,8,"ياسين جاني","الثانية 4",null,null,null,null,null,null,null,null,null,null,null,null,null,null,null,null,null,null,null,null,null,null,null,null,null,null,null,null,null,null,null,0,null,0]
[4,0,0,1,9,"يوسف بن عياد","الثانية 4",null,null,null,null,null,null,null,null,null,null,null,1,null,null,null,null,null,null,null,null,null,null,null,null,null,null,null,null,null,null,null,0,null,1]
[4,0,0,0,10,"حسن ياديني","الثانية 4",null,null,null,null,null,null,null,null,null,null,null,null,null,null,null,null,null,null,null,null,null,null,null,null,null,null,null,null,null,null,null,0,null,0]
[4,0,0,0,11,"كوثر المساعين","الثانية 4",null,null,null,null,null,null,null,null,null,null,null,null,null,null,null,null,null,null,null,null,null,null,null,null,null,null,null,null,null,null,null,0,null,0]
[4,0,0,2,12,"منى السباعي","الثانية 4",null,null,null,null,null,null,null,null,null,null,1,1,null,null,null,null,null,null,null,null,null,null,null,null,null,null,null,null,null,null,null,0,null,2]
[4,0,0,1,13,"محمد ياسر فوزي","الثانية 4",null,null,null,null,null,null,1,null,null,null,null,null,null,null,null,null,null,null,null,null,null,null,null,null,null,null,null,null,null,null,null,0,null,1]
[4,0,0,1,14,"خديجة الرحالي","الثانية 4",null,null,null,null,null,null,null,null,null,null,null,1,null,null,null,null,null,null,null,null,null,null,null,null,null,null,null,null,null,null,null,0,null,1]
[4,0,0,0,15,"اميمة بنعيسى","الثانية 4",null,null,null,null,null,null,null,null,null,null,null,null,null,null,null,null,null,null,null,null,null,null,null,null,null,null,null,null,null,null,null,0,null,0]
[4,{"$f":"AM205","v":0},{"$f":"AN205","v":0},{"$f":"AO205","v":0},16,"اسماء عاقل","الثانية 4",null,null,null,null,null,null,null,null,null,null,null,null,null,null,null,null,null,null,null,null,null,null,null,null,null,null,null,null,null,null,null,0,null,0]
[4,0,0,1,17,"نسيمة انفلوس","الثانية 4",null,null,null,null,null,null,null,null,null,null,null,1,null,null,null,null,null,null,null,null,null,null,null,null,null,null,null,null,null,null,null,0,null,1]
[4,0,0,0,18,"محمد البوزيدي ","الثانية 4",null,null,null,null,null,null,null,null,null,null,null,null,null,null,null,null,null,null,null,null,null,null,null,null,null,null,null,null,null,null,null,0,null,0]
[4,0,0,0,19,"ريحان حباز","الثانية 4",null,null,null,null,null,null,null,null,null,null,null,null,null,null,null,null,null,null,null,null,null,null,null,null,null,null,null,null,null,null,null,0,null,0]
[4,0,0,0,20,"ياسين ابوكَماز","الثانية 4",null,null,null,null,null,null,null,null,null,null,null,null,null,null,null,null,null,null,null,null,null,null,null,null,null,null,null,null,null,null,null,0,null,0]
[4,0,0,0,21,"عمر فراح","الثانية 4",null,null,null,null,null,null,null,null,null,null,null,null,null,null,null,null,null,null,null,null,null,null,null,null,null,null,null,null,null,null,null,0,null,0]
[4,0,0,1,22,"شيماء حمداوي","الثانية 4",null,null,null,null,null,null,null,1,null,null,null,null,null,null,null,null,null,null,null,null,null,null,null,null,null,null,null,null,null,null,null,0,null,1]
[4,0,0,0,23,"عبد الالاه بورحيمي","الثانية 4",null,null,null,null,null,null,null,null,null,null,null,null,null,null,null,null,null,null,null,null,null,null,null,null,null,null,null,null,null,null,null,0,null,0]
[4,0,0,5,24,"خولة خيام","الثانية 4",null,null,null,2,null,null,null,1,null,null,null,2,null,null,null,null,null,null,null,null,null,null,null,null,null,null,null,null,null,null,null,0,null,5]
[4,0,0,0,25,"هيبة برخوش","الثانية 4",null,null,null,null,null,null,null,null,null,null,null,null,null,null,null,null,null,null,null,null,null,null,null,null,null,null,null,null,null,null,null,0,null,0]
[4,4,0,1,26,"عبد الحق سباعي ","الثانية 4",null,null,null,"4j",null,null,1,null,null,null,null,null,null,null,null,null,null,null,null,null,null,null,null,null,null,null,null,null,null,null,null,4,null,1]
[4,0,0,0,27,"حياة اومليل","الثانية 4",null,null,null,null,null,null,null,null,null,null,null,null,null,null,null,null,null,null,null,null,null,null,null,null,null,null,null,null,null,null,null,0,null,0]
[4,0,0,0,28,"فاطمة الزهراء لفديلي","الثانية 4",null,null,null,null,null,null,null,null,null,null,null,null,null,null,null,null,null,null,null,null,null,null,null,null,null,null,null,null,null,null,null,0,null,0]
[4,0,0,3,29,"مروة الاباوردي","الثانية 4",null,null,null,null,null,null,null,1,null,null,null,2,null,null,null,null,null,null,null,null,null,null,null,null,null,null,null,null,null,null,null,0,null,3]
[4,0,0,1,30,"اية جامع","الثانية 4",null,null,null,null,null,null,null,null,null,null,null,1,null,null,null,null,null,null,null,null,null,null,null,null,null,null,null,null,null,null,null,0,null,1]
[4,0,0,0,31,"يوسف اوباقدي","الثانية 4",null,null,null,null,null,null,null,null,null,null,null,null,null,null,null,null,null,null,null,null,null,null,null,null,null,null,null,null,null,null,null,0,null,0]
[4,0,0,0,32,"ادم اماي","الثانية 4",null,null,null,null,null,null,null,null,null,null,null,null,null,null,null,null,null,null,null,null,null,null,null,null,null,null,null,null,null,null,null,0,null,0]
[4,0,0,0,33,"محمد بوخساس","الثانية 4",null,null,null,null,null,null,null,null,null,null,null,null,null,null,null,null,null,null,null,null,null,null,null,null,null,null,null,null,null,null,null,0,null,0]
[4,0,0,8,34,"قمر الباز","الثانية 4",null,null,null,1,null,null,null,2,null,null,2,3,null,null,null,null,null,null,null,null,null,null,null,null,null,null,null,null,null,null,null,0,null,8]
[4,0,0,3,35,"عبد العالي بوفكر","الثانية 4",null,null,1,null,null,null,2,null,null,null,null,null,null,null,null,null,null,null,null,null,null,null,null,null,null,null,null,null,null,null,null,0,null,3]
[4,0,0,9,36,"زكرياء المسنوري","الثانية 4",null,null,1,null,null,null,4,2,null,null,null,2,null,null,null,null,null,null,null,null,null,null,null,null,null,null,null,null,null,null,null,0,null,9]
[null,0,0,0,37,"غيثة ماء العنين","الثانية 4",null,null,null,null,null,null,null,null,null,null,null,null,null,null,null,null,null,null,null,null,null,null,null,null,null,null,null,null,null,null,null,0,null,0]
[null,0,0,0,38,"منير المرشيق","الثانية 4",null,null,null,null,null,null,null,null,null,null,null,null,null,null,null,null,null,null,null,null,null,null,null,null,null,null,null,null,null,null,null,0,null,0]
[null,0,0,0,39,"","",null,null,null,null,null,null,null,null,null,null,null,null,null,null,null,null,null,null,null,null,null,null,null,null,null,null,null,null,null,null,null,0,null,0]
[null,0,0,0,40,"","",null,null,null,null,null,null,null,null,null,null,null,null,null,null,null,null,null,null,null,null,null,null,null,null,null,null,null,null,null,null,null,0,null,0]
[null,0,0,0,41,"","",null,null,null,null,null,null,null,null,null,null,null,null,null,null,null,null,null,null,null,null,null,null,null,null,null,null,null,null,null,null,null,0,null,0]
[null,0,0,0,"","","",null,null,null,null,null,null,null,null,null,null,null,null,null,null,null,null,null,null,null,null,null,null,null,null,null,null,null,null,null,null,null,0,null,0]
[null,0,0,0,"","","",null,null,null,null,null,null,null,null,null,null,null,null,null,null,null,null,null,null,null,null,null,null,null,null,null,null,null,null,null,null,null,0,null,0]
[null,0,0,0,"","","",null,null,null,null,null,null,null,null,null,null,null,null,null,null,null,null,null,null,null,null,null,null,null,null,null,null,null,null,null,null,null,0,null,0]
[null,0,0,0,"","","",null,null,null,null,null,null,null,null,null,null,null,null,null,null,null,null,null,null,null,null,null,null,null,null,null,null,null,null,null,null,null,0,null,0]
[null,0,0,0,"","","",null,null,null,null,null,null,null,null,null,null,null,null,null,null,null,null,null,null,null,null,null,null,null,null,null,null,null,null,null,null,null,0,null,0]
[null,0,0,0,"","","",null,null,null,null,null,null,null,null,null,null,null,null,null,null,null,null,null,null,null,null,null,null,null,null,null,null,null,null,null,null,null,0,null,0]
[null,0,0,0,"","","",null,null,null,null,null,null,null,null,null,null,null,null,null,null,null,null,null,null,null,null,null,null,null,null,null,null,null,null,null,null,null,0,null,0]
[null,0,0,0,"","","",null,null,null,null,null,null,null,null,null,null,null,null,null,null,null,null,null,null,null,null,null,null,null,null,null,null,null,null,null,null,null,0,null,0]
[null,0,0,0,"","","",null,null,null,null,null,null,null,null,null,null,null,null,null,null,null,null,null,null,null,null,null,null,null,null,null,null,null,null,null,null,null,0,null,0]
[null,0,0,0]
[null,0,0,0,null,null,null,null,null,null,null,null,null,null,null,null,"الثانية 5"]
[null,0,0,0]
[null,0,0,0]
[null,0,0,0]
[null,0,0,0]
[null,{"$f":"AM246","v":0},{"$f":"AN246","v":0},{"$f":"AO246","v":0},"رقم\nالتلميذ","الإسم و النسب","القسم","الأيـــــــــــــــــــــــــــــــــــــــــــــــــــــــــــــــــــــــــــام"]
[null,0,0,"31",null,null,null,"01","02","03","04","05","06","07","08","09","10","11","12","13",14,"15","16","17","18","19","20","21","22","23","24","25","26","27","28","29","30","31",null,null,"31"]
[null,0,0,31,null,null,null,null,null,3,4,5,6,7,8,9,10,11,12,13,14,15,16,17,18,19,20,21,22,23,24,25,26,27,28,29,30,31,null,null,31]
[5,0,0,0,1,"سهيب كاسمي","الثانية 5",null,null,null,null,null,null,null,null,null,null,null,null,null,null,null,null,null,null,null,null,null,null,null,null,null,null,null,null,null,null,null,{"$f":"IF(RIGHT(H249)=\"j\",LEFT(H249))+IF(RIGHT(I249)=\"j\",LEFT(I249))+IF(RIGHT(J249)=\"j\",LEFT(J249))+IF(RIGHT(K249)=\"j\",LEFT(K249))+IF(RIGHT(L249)=\"j\",LEFT(L249))+IF(RIGHT(M249)=\"j\",LEFT(M249))+IF(RIGHT(N249)=\"j\",LEFT(N249))+IF(RIGHT(O249)=\"j\",LEFT(O249))+IF(RIGHT(P249)=\"j\",LEFT(P249))+IF(RIGHT(Q249)=\"j\",LEFT(Q249))+IF(RIGHT(R249)=\"j\",LEFT(R249))+IF(RIGHT(S249)=\"j\",LEFT(S249))+IF(RIGHT(T249)=\"j\",LEFT(T249))+IF(RIGHT(U249)=\"j\",LEFT(U249))+IF(RIGHT(V249)=\"j\",LEFT(V249))+IF(RIGHT(W249)=\"j\",LEFT(W249))+IF(RIGHT(X249)=\"j\",LEFT(X249))+IF(RIGHT(Y249)=\"j\",LEFT(Y249))+IF(RIGHT(Z249)=\"j\",LEFT(Z249))+IF(RIGHT(AA249)=\"j\",LEFT(AA249))+IF(RIGHT(AB249)=\"j\",LEFT(AB249))+IF(RIGHT(AC249)=\"j\",LEFT(AC249))+IF(RIGHT(AD249)=\"j\",LEFT(AD249))+IF(RIGHT(AE249)=\"j\",LEFT(AE249))+IF(RIGHT(AF249)=\"j\",LEFT(AF249))+IF(RIGHT(AG249)=\"j\",LEFT(AG249))+IF(RIGHT(AH249)=\"j\",LEFT(AH249))+IF(RIGHT(AI249)=\"j\",LEFT(AI249))+IF(RIGHT(AJ249)=\"j\",LEFT(AJ249))+IF(RIGHT(AK249)=\"j\",LEFT(AK249))+IF(RIGHT(AL249)=\"j\",LEFT(AL249))","v":0},null,{"$f":"SUM(H249:AL249)","v":0}]
[5,0,0,0,2,"نهيلة السعيدي","الثانية 5",null,null,null,null,null,null,null,null,null,null,null,null,null,null,null,null,null,null,null,null,null,null,null,null,null,null,null,null,null,null,null,0,null,0]
[5,0,0,0,3,"محمد الرويسي","الثانية 5",null,null,null,null,null,null,null,null,null,null,null,null,null,null,null,null,null,null,null,null,null,null,null,null,null,null,null,null,null,null,null,0,null,0]
[5,0,0,0,4,"هجر المحمدي","الثانية 5",null,null,null,null,null,null,null,null,null,null,null,null,null,null,null,null,null,null,null,null,null,null,null,null,null,null,null,null,null,null,null,0,null,0]
[5,0,0,0,5,"محمد امين ابوحى","الثانية 5",null,null,null,null,null,null,null,null,null,null,null,null,null,null,null,null,null,null,null,null,null,null,null,null,null,null,null,null,null,null,null,0,null,0]
[5,0,0,3,6,"يسرى مفتاح","الثانية 5",null,null,3,null,null,null,null,null,null,null,null,null,null,null,null,null,null,null,null,null,null,null,null,null,null,null,null,null,null,null,null,0,null,3]
[5,0,0,0,7,"دنيا قلا","الثانية 5",null,null,null,null,null,null,null,null,null,null,null,null,null,null,null,null,null,null,null,null,null,null,null,null,null,null,null,null,null,null,null,0,null,0]
[5,0,0,0,8,"سارة اقاسي","الثانية 5",null,null,null,null,null,null,null,null,null,null,null,null,null,null,null,null,null,null,null,null,null,null,null,null,null,null,null,null,null,null,null,0,null,0]
[5,2,0,0,9,"نهيلة القايدي","الثانية 5",null,null,null,"2j",null,null,null,null,null,null,null,null,null,null,null,null,null,null,null,null,null,null,null,null,null,null,null,null,null,null,null,2,null,0]
[5,0,0,2,10,"خديجة رشيدي","الثانية 5",null,null,1,null,null,null,1,null,null,null,null,null,null,null,null,null,null,null,null,null,null,null,null,null,null,null,null,null,null,null,null,0,null,2]
[5,2,0,0,11,"هند السويكي","الثانية 5",null,null,null,"2j",null,null,null,null,null,null,null,null,null,null,null,null,null,null,null,null,null,null,null,null,null,null,null,null,null,null,null,2,null,0]
[5,0,0,0,12,"ايمن حمو","الثانية 5",null,null,null,null,null,null,null,null,null,null,null,null,null,null,null,null,null,null,null,null,null,null,null,null,null,null,null,null,null,null,null,0,null,0]
[5,0,0,0,13,"ايمان الكاس","الثانية 5",null,null,null,null,null,null,null,null,null,null,null,null,null,null,null,null,null,null,null,null,null,null,null,null,null,null,null,null,null,null,null,0,null,0]
[5,2,0,0,14,"سلمى حاربيلي","الثانية 5",null,null,null,"2j",null,null,null,null,null,null,null,null,null,null,null,null,null,null,null,null,null,null,null,null,null,null,null,null,null,null,null,2,null,0]
[5,0,0,0,15,"الحسين جعران","الثانية 5",null,null,null,null,null,null,null,null,null,null,null,null,null,null,null,null,null,null,null,null,null,null,null,null,null,null,null,null,null,null,null,0,null,0]
[5,0,0,0,16,"السعيد امرزو","الثانية 5",null,null,null,null,null,null,null,null,null,null,null,null,null,null,null,null,null,null,null,null,null,null,null,null,null,null,null,null,null,null,null,0,null,0]
[5,0,0,0,17,"خولة فرماق","الثانية 5",null,null,null,null,null,null,null,null,null,null,null,null,null,null,null,null,null,null,null,null,null,null,null,null,null,null,null,null,null,null,null,0,null,0]
[5,0,0,0,18,"سفيان موزي","الثانية 5",null,null,null,null,null,null,null,null,null,null,null,null,null,null,null,null,null,null,null,null,null,null,null,null,null,null,null,null,null,null,null,0,null,0]
[5,0,0,10,19,"عبد الرحمان الوالي","الثانية 5",null,1,2,null,null,null,null,null,null,null,1,6,null,null,null,null,null,null,null,null,null,null,null,null,null,null,null,null,null,null,null,0,null,10]
[5,0,0,2,20,"الياس املوان","الثانية 5",null,null,null,null,null,null,null,null,null,null,null,2,null,null,null,null,null,null,null,null,null,null,null,null,null,null,null,null,null,null,null,0,null,2]
[5,0,0,0,21,"محمد اوحسو","الثانية 5",null,null,null,null,null,null,null,null,null,null,null,null,null,null,null,null,null,null,null,null,null,null,null,null,null,null,null,null,null,null,null,0,null,0]
[5,0,0,0,22,"حسام الدحاني","الثانية 5",null,null,null,null,null,null,null,null,null,null,null,null,null,null,null,null,null,null,null,null,null,null,null,null,null,null,null,null,null,null,null,0,null,0]
[5,0,0,0,23,"سكينة اطويل","الثانية 5",null,null,null,null,null,null,null,null,null,null,null,null,null,null,null,null,null,null,null,null,null,null,null,null,null,null,null,null,null,null,null,0,null,0]
[5,0,0,0,24,"الهام بوقير","الثانية 5",null,null,null,null,null,null,null,null,null,null,null,null,null,null,null,null,null,null,null,null,null,null,null,null,null,null,null,null,null,null,null,0,null,0]
[5,0,0,0,25,"اميمة بورشوق","الثانية 5",null,null,null,null,null,null,null,null,null,null,null,null,null,null,null,null,null,null,null,null,null,null,null,null,null,null,null,null,null,null,null,0,null,0]
[5,0,0,0,26,"ياسمين بن عياد","الثانية 5",null,null,null,null,null,null,null,null,null,null,null,null,null,null,null,null,null,null,null,null,null,null,null,null,null,null,null,null,null,null,null,0,null,0]
[5,0,0,0,27,"سلمى اقرقاب","الثانية 5",null,null,null,null,null,null,null,null,null,null,null,null,null,null,null,null,null,null,null,null,null,null,null,null,null,null,null,null,null,null,null,0,null,0]
[5,0,0,0,28,"فاطمة امنحار","الثانية 5",null,null,null,null,null,null,null,null,null,null,null,null,null,null,null,null,null,null,null,null,null,null,null,null,null,null,null,null,null,null,null,0,null,0]
[5,2,0,0,29,"الحسن جعران","الثانية 5",null,null,null,"2j",null,null,null,null,null,null,null,null,null,null,null,null,null,null,null,null,null,null,null,null,null,null,null,null,null,null,null,2,null,0]
[5,3,0,0,30,"سامية الخاضري","الثانية 5",null,null,null,"3j",null,null,null,null,null,null,null,null,null,null,null,null,null,null,null,null,null,null,null,null,null,null,null,null,null,null,null,3,null,0]
[5,0,0,0,31,"فتيحة مومن","الثانية 5",null,null,null,null,null,null,null,null,null,null,null,null,null,null,null,null,null,null,null,null,null,null,null,null,null,null,null,null,null,null,null,0,null,0]
[5,0,0,0,32,"احلام البلوطي","الثانية 5",null,null,null,null,null,null,null,null,null,null,null,null,null,null,null,null,null,null,null,null,null,null,null,null,null,null,null,null,null,null,null,0,null,0]
[5,0,0,0,33,"محمد امين مرزاقي","الثانية 5",null,null,null,null,null,null,null,null,null,null,null,null,null,null,null,null,null,null,null,null,null,null,null,null,null,null,null,null,null,null,null,0,null,0]
[5,0,0,0,34,"حسام احلوى","الثانية 5",null,null,null,null,null,null,null,null,null,null,null,null,null,null,null,null,null,null,null,null,null,null,null,null,null,null,null,null,null,null,null,0,null,0]
[5,0,0,1,35,"بدر الدين عدي","الثانية 5",null,null,null,null,null,null,null,null,null,null,null,1,null,null,null,null,null,null,null,null,null,null,null,null,null,null,null,null,null,null,null,0,null,1]
[null,0,0,0,36,"ايوب السائح","الثانية 5",null,null,null,null,null,null,null,null,null,null,null,null,null,null,null,null,null,null,null,null,null,null,null,null,null,null,null,null,null,null,null,0,null,0]
[null,0,0,0,37,"حسام المزواري","الثانية 5",null,null,null,null,null,null,null,null,null,null,null,null,null,null,null,null,null,null,null,null,null,null,null,null,null,null,null,null,null,null,null,0,null,0]
[null,0,0,0,38,"","",null,null,null,null,null,null,null,null,null,null,null,null,null,null,null,null,null,null,null,null,null,null,null,null,null,null,null,null,null,null,null,0,null,0]
[null,0,0,0,39,"","",null,null,null,null,null,null,null,null,null,null,null,null,null,null,null,null,null,null,null,null,null,null,null,null,null,null,null,null,null,null,null,0,null,0]
[null,0,0,0,40,"","",null,null,null,null,null,null,null,null,null,null,null,null,null,null,null,null,null,null,null,null,null,null,null,null,null,null,null,null,null,null,null,0,null,0]
[null,0,0,0,41,"","",null,null,null,null,null,null,null,null,null,null,null,null,null,null,null,null,null,null,null,null,null,null,null,null,null,null,null,null,null,null,null,0,null,0]
[null,0,0,0,"","","",null,null,null,null,null,null,null,null,null,null,null,null,null,null,null,null,null,null,null,null,null,null,null,null,null,null,null,null,null,null,null,0,null,0]
[null,0,0,0,"","","",null,null,null,null,null,null,null,null,null,null,null,null,null,null,null,null,null,null,null,null,null,null,null,null,null,null,null,null,null,null,null,0,null,0]
[null,0,0,0,"","","",null,null,null,null,null,null,null,null,null,null,null,null,null,null,null,null,null,null,null,null,null,null,null,null,null,null,null,null,null,null,null,0,null,0]
[null,0,0,0,"","","",null,null,null,null,null,null,null,null,null,null,null,null,null,null,null,null,null,null,null,null,null,null,null,null,null,null,null,null,null,null,null,0,null,0]
[null,0,0,0,"","","",null,null,null,null,null,null,null,null,null,null,null,null,null,null,null,null,null,null,null,null,null,null,null,null,null,null,null,null,null,null,null,0,null,0]
[null,0,0,0,"","","",null,null,null,null,null,null,null,null,null,null,null,null,null,null,null,null,null,null,null,null,null,null,null,null,null,null,null,null,null,null,null,0,null,0]
[null,0,0,0,"","","",null,null,null,null,null,null,null,null,null,null,null,null,null,null,null,null,null,null,null,null,null,null,null,null,null,null,null,null,null,null,null,0,null,0]
[null,0,0,0,"","","",null,null,null,null,null,null,null,null,null,null,null,null,null,null,null,null,null,null,null,null,null,null,null,null,null,null,null,null,null,null,null,0,null,0]
[null,0,0,0,"","","",null,null,null,null,null,null,null,null,null,null,null,null,null,null,null,null,null,null,null,null,null,null,null,null,null,null,null,null,null,null,null,0,null,0]
[null,0,0,0]
[null,{"$f":"AM300","v":0},{"$f":"AN300","v":0},{"$f":"AO300","v":0},null,null,null,null,null,null,null,null,null,null,null,null,"الثانية 6"]
[null,0,0,0]
[null,0,0,0]
[null,0,0,0]
[null,0,0,0]
[null,0,0,0,"رقم\nالتلميذ","الإسم و النسب","القسم","الأيـــــــــــــــــــــــــــــــــــــــــــــــــــــــــــــــــــــــــــام"]
[null,0,0,"31",null,null,null,"01","02","03","04","05","06","07","08","09","10","11","12","13",14,"15","16","17","18","19","20","21","22","23","24","25","26","27","28","29","30","31",null,null,"31"]
[null,0,0,31,null,null,null,null,null,3,4,5,6,7,8,9,10,11,12,13,14,15,16,17,18,19,20,21,22,23,24,25,26,27,28,29,30,31,null,null,31]
[6,0,0,1,1,"احمد ايت احميدة","الثانية 6",null,1,null,null,null,null,null,null,null,null,null,null,null,null,null,null,null,null,null,null,null,null,null,null,null,null,null,null,null,null,null,{"$f":"IF(RIGHT(H308)=\"j\",LEFT(H308))+IF(RIGHT(I308)=\"j\",LEFT(I308))+IF(RIGHT(J308)=\"j\",LEFT(J308))+IF(RIGHT(K308)=\"j\",LEFT(K308))+IF(RIGHT(L308)=\"j\",LEFT(L308))+IF(RIGHT(M308)=\"j\",LEFT(M308))+IF(RIGHT(N308)=\"j\",LEFT(N308))+IF(RIGHT(O308)=\"j\",LEFT(O308))+IF(RIGHT(P308)=\"j\",LEFT(P308))+IF(RIGHT(Q308)=\"j\",LEFT(Q308))+IF(RIGHT(R308)=\"j\",LEFT(R308))+IF(RIGHT(S308)=\"j\",LEFT(S308))+IF(RIGHT(T308)=\"j\",LEFT(T308))+IF(RIGHT(U308)=\"j\",LEFT(U308))+IF(RIGHT(V308)=\"j\",LEFT(V308))+IF(RIGHT(W308)=\"j\",LEFT(W308))+IF(RIGHT(X308)=\"j\",LEFT(X308))+IF(RIGHT(Y308)=\"j\",LEFT(Y308))+IF(RIGHT(Z308)=\"j\",LEFT(Z308))+IF(RIGHT(AA308)=\"j\",LEFT(AA308))+IF(RIGHT(AB308)=\"j\",LEFT(AB308))+IF(RIGHT(AC308)=\"j\",LEFT(AC308))+IF(RIGHT(AD308)=\"j\",LEFT(AD308))+IF(RIGHT(AE308)=\"j\",LEFT(AE308))+IF(RIGHT(AF308)=\"j\",LEFT(AF308))+IF(RIGHT(AG308)=\"j\",LEFT(AG308))+IF(RIGHT(AH308)=\"j\",LEFT(AH308))+IF(RIGHT(AI308)=\"j\",LEFT(AI308))+IF(RIGHT(AJ308)=\"j\",LEFT(AJ308))+IF(RIGHT(AK308)=\"j\",LEFT(AK308))+IF(RIGHT(AL308)=\"j\",LEFT(AL308))","v":0},null,{"$f":"SUM(H308:AL308)","v":1}]
[6,0,0,1,2,"فاتحة السمهري","الثانية 6",null,null,null,1,null,null,null,null,null,null,null,null,null,null,null,null,null,null,null,null,null,null,null,null,null,null,null,null,null,null,null,0,null,1]
[6,0,0,2,3,"اشرف اغوثان","الثانية 6",null,null,null,null,null,null,2,null,null,null,null,null,null,null,null,null,null,null,null,null,null,null,null,null,null,null,null,null,null,null,null,0,null,2]
[6,0,0,0,4,"هند احدادي","الثانية 6",null,null,null,null,null,null,null,null,null,null,null,null,null,null,null,null,null,null,null,null,null,null,null,null,null,null,null,null,null,null,null,0,null,0]
[6,0,0,1,5,"عبد العليم شعير","الثانية 6",null,1,null,null,null,null,null,null,null,null,null,null,null,null,null,null,null,null,null,null,null,null,null,null,null,null,null,null,null,null,null,0,null,1]
[6,0,0,0,6,"هجر ضراج","الثانية 6",null,null,null,null,null,null,null,null,null,null,null,null,null,null,null,null,null,null,null,null,null,null,null,null,null,null,null,null,null,null,null,0,null,0]
[6,0,0,0,7,"حنان حسي","الثانية 6",null,null,null,null,null,null,null,null,null,null,null,null,null,null,null,null,null,null,null,null,null,null,null,null,null,null,null,null,null,null,null,0,null,0]
[6,0,0,0,8,"اناس نبوي","الثانية 6",null,null,null,null,null,null,null,null,null,null,null,null,null,null,null,null,null,null,null,null,null,null,null,null,null,null,null,null,null,null,null,0,null,0]
[6,0,0,0,9,"فاطمة طلحة","الثانية 6",null,null,null,null,null,null,null,null,null,null,null,null,null,null,null,null,null,null,null,null,null,null,null,null,null,null,null,null,null,null,null,0,null,0]
[6,0,0,0,10,"مريم البلغيتي","الثانية 6",null,null,null,null,null,null,null,null,null,null,null,null,null,null,null,null,null,null,null,null,null,null,null,null,null,null,null,null,null,null,null,0,null,0]
[6,0,0,0,11,"اشرف بوحليق","الثانية 6",null,null,null,null,null,null,null,null,null,null,null,null,null,null,null,null,null,null,null,null,null,null,null,null,null,null,null,null,null,null,null,0,null,0]
[6,0,0,0,12,"سليمة طالبي","الثانية 6",null,null,null,null,null,null,null,null,null,null,null,null,null,null,null,null,null,null,null,null,null,null,null,null,null,null,null,null,null,null,null,0,null,0]
[6,0,0,0,13,"مراد ناجم","الثانية 6",null,null,null,null,null,null,null,null,null,null,null,null,null,null,null,null,null,null,null,null,null,null,null,null,null,null,null,null,null,null,null,0,null,0]
[6,0,0,0,14,"حسام العساوي","الثانية 6",null,null,null,null,null,null,null,null,null,null,null,null,null,null,null,null,null,null,null,null,null,null,null,null,null,null,null,null,null,null,null,0,null,0]
[6,4,0,1,15,"يحيى ايت عبدالرحمان","الثانية 6",null,null,1,"4j",null,null,null,null,null,null,null,null,null,null,null,null,null,null,null,null,null,null,null,null,null,null,null,null,null,null,null,4,null,1]
[6,0,0,0,16,"كوثر البركاوي","الثانية 6",null,null,null,null,null,null,null,null,null,null,null,null,null,null,null,null,null,null,null,null,null,null,null,null,null,null,null,null,null,null,null,0,null,0]
[6,0,0,0,17,"بشرى الصنهاجي","الثانية 6",null,null,null,null,null,null,null,null,null,null,null,null,null,null,null,null,null,null,null,null,null,null,null,null,null,null,null,null,null,null,null,0,null,0]
[6,0,0,0,18,"عبد الرحيم بوكجدي","الثانية 6",null,null,null,null,null,null,null,null,null,null,null,null,null,null,null,null,null,null,null,null,null,null,null,null,null,null,null,null,null,null,null,0,null,0]
[6,0,0,0,19,"يوسف المصلح","الثانية 6",null,null,null,null,null,null,null,null,null,null,null,null,null,null,null,null,null,null,null,null,null,null,null,null,null,null,null,null,null,null,null,0,null,0]
[6,0,0,0,20,"ملاك جمقري","الثانية 6",null,null,null,null,null,null,null,null,null,null,null,null,null,null,null,null,null,null,null,null,null,null,null,null,null,null,null,null,null,null,null,0,null,0]
[6,2,0,0,21,"فضيلة باعلي","الثانية 6",null,null,null,null,null,null,"2j",null,null,null,null,null,null,null,null,null,null,null,null,null,null,null,null,null,null,null,null,null,null,null,null,2,null,0]
[6,0,0,1,22,"معاذ المومني","الثانية 6",null,null,null,null,null,null,null,null,null,null,null,1,null,null,null,null,null,null,null,null,null,null,null,null,null,null,null,null,null,null,null,0,null,1]
[6,0,0,0,23,"هدى السائح","الثانية 6",null,null,null,null,null,null,null,null,null,null,null,null,null,null,null,null,null,null,null,null,null,null,null,null,null,null,null,null,null,null,null,0,null,0]
[6,3,0,2,24,"فيروز بوبكري","الثانية 6",null,null,null,"3j",null,null,null,null,null,null,null,2,null,null,null,null,null,null,null,null,null,null,null,null,null,null,null,null,null,null,null,3,null,2]
[6,6,0,0,25,"امال رزوق","الثانية 6",null,null,null,null,null,null,"6j",null,null,null,null,null,null,null,null,null,null,null,null,null,null,null,null,null,null,null,null,null,null,null,null,6,null,0]
[6,0,0,0,26,"عبد المجيد بعلا","الثانية 6",null,null,null,null,null,null,null,null,null,null,null,null,null,null,null,null,null,null,null,null,null,null,null,null,null,null,null,null,null,null,null,0,null,0]
[6,0,0,0,27,"ايوب الفراجي","الثانية 6",null,null,null,null,null,null,null,null,null,null,null,null,null,null,null,null,null,null,null,null,null,null,null,null,null,null,null,null,null,null,null,0,null,0]
[6,0,0,0,28,"شيماء لمكوني","الثانية 6",null,null,null,null,null,null,null,null,null,null,null,null,null,null,null,null,null,null,null,null,null,null,null,null,null,null,null,null,null,null,null,0,null,0]
[6,0,0,0,29,"خديجة الموذن","الثانية 6",null,null,null,null,null,null,null,null,null,null,null,null,null,null,null,null,null,null,null,null,null,null,null,null,null,null,null,null,null,null,null,0,null,0]
[6,0,0,0,30,"فؤاد بنكوديان","الثانية 6",null,null,null,null,null,null,null,null,null,null,null,null,null,null,null,null,null,null,null,null,null,null,null,null,null,null,null,null,null,null,null,0,null,0]
[6,0,0,0,31,"حفيظة ناجم","الثانية 6",null,null,null,null,null,null,null,null,null,null,null,null,null,null,null,null,null,null,null,null,null,null,null,null,null,null,null,null,null,null,null,0,null,0]
[6,0,0,0,32,"محمد السلاوي","الثانية 6",null,null,null,null,null,null,null,null,null,null,null,null,null,null,null,null,null,null,null,null,null,null,null,null,null,null,null,null,null,null,null,0,null,0]
[6,0,0,0,33,"ايوب زروال","الثانية 6",null,null,null,null,null,null,null,null,null,null,null,null,null,null,null,null,null,null,null,null,null,null,null,null,null,null,null,null,null,null,null,0,null,0]
[6,0,0,0,34,"حمزة اقبوش","الثانية 6",null,null,null,null,null,null,null,null,null,null,null,null,null,null,null,null,null,null,null,null,null,null,null,null,null,null,null,null,null,null,null,0,null,0]
[6,1,0,7,35,"نهال بلحسن","الثانية 6",null,1,"1j",4,null,null,null,2,null,null,null,null,null,null,null,null,null,null,null,null,null,null,null,null,null,null,null,null,null,null,null,1,null,7]
[6,0,0,3,36,"حسن وعزيز","الثانية 6",null,1,null,null,null,null,2,null,null,null,null,null,null,null,null,null,null,null,null,null,null,null,null,null,null,null,null,null,null,null,null,0,null,3]
[null,0,0,0,37,"ماجدة العطار","الثانية 6",null,null,null,null,null,null,null,null,null,null,null,null,null,null,null,null,null,null,null,null,null,null,null,null,null,null,null,null,null,null,null,0,null,0]
[null,0,0,0,38,"","",null,null,null,null,null,null,null,null,null,null,null,null,null,null,null,null,null,null,null,null,null,null,null,null,null,null,null,null,null,null,null,0,null,0]
[null,0,0,0,39,"","",null,null,null,null,null,null,null,null,null,null,null,null,null,null,null,null,null,null,null,null,null,null,null,null,null,null,null,null,null,null,null,0,null,0]
[null,0,0,0,40,"","",null,null,null,null,null,null,null,null,null,null,null,null,null,null,null,null,null,null,null,null,null,null,null,null,null,null,null,null,null,null,null,0,null,0]
[null,0,0,0,41,"","",null,null,null,null,null,null,null,null,null,null,null,null,null,null,null,null,null,null,null,null,null,null,null,null,null,null,null,null,null,null,null,0,null,0]
[null,0,0,0,"","","",null,null,null,null,null,null,null,null,null,null,null,null,null,null,null,null,null,null,null,null,null,null,null,null,null,null,null,null,null,null,null,0,null,0]
[null,0,0,0,"","","",null,null,null,null,null,null,null,null,null,null,null,null,null,null,null,null,null,null,null,null,null,null,null,null,null,null,null,null,null,null,null,0,null,0]
[null,0,0,0,"","","",null,null,null,null,null,null,null,null,null,null,null,null,null,null,null,null,null,null,null,null,null,null,null,null,null,null,null,null,null,null,null,0,null,0]
[null,0,0,0,"","","",null,null,null,null,null,null,null,null,null,null,null,null,null,null,null,null,null,null,null,null,null,null,null,null,null,null,null,null,null,null,null,0,null,0]
[null,0,0,0,"","","",null,null,null,null,null,null,null,null,null,null,null,null,null,null,null,null,null,null,null,null,null,null,null,null,null,null,null,null,null,null,null,0,null,0]
[null,0,0,0,"","","",null,null,null,null,null,null,null,null,null,null,null,null,null,null,null,null,null,null,null,null,null,null,null,null,null,null,null,null,null,null,null,0,null,0]
[null,0,0,0,"","","",null,null,null,null,null,null,null,null,null,null,null,null,null,null,null,null,null,null,null,null,null,null,null,null,null,null,null,null,null,null,null,0,null,0]
[null,0,0,0,"","","",null,null,null,null,null,null,null,null,null,null,null,null,null,null,null,null,null,null,null,null,null,null,null,null,null,null,null,null,null,null,null,0,null,0]
[null,0,0,0,"","","",null,null,null,null,null,null,null,null,null,null,null,null,null,null,null,null,null,null,null,null,null,null,null,null,null,null,null,null,null,null,null,0,null,0]
[null,0,0,0]
[null,0,0,0,null,null,null,null,null,null,null,null,null,null,null,null,"الثانية 7"]
[null,0,0,0]
[null,0,0,0]
[null,0,0,0]
[null,0,0,0]
[null,{"$f":"AM364","v":0},{"$f":"AN364","v":0},{"$f":"AO364","v":0},"رقم\nالتلميذ","الإسم و النسب","القسم","الأيـــــــــــــــــــــــــــــــــــــــــــــــــــــــــــــــــــــــــــام"]
[null,0,0,"31",null,null,null,"01","02","03","04","05","06","07","08","09","10","11","12","13",14,"15","16","17","18","19","20","21","22","23","24","25","26","27","28","29","30","31",null,null,"31"]
[null,0,0,31,null,null,null,null,null,3,4,5,6,7,8,9,10,11,12,13,14,15,16,17,18,19,20,21,22,23,24,25,26,27,28,29,30,31,null,null,31]
[7,0,0,0,1,"طارق المريحي","الثانية 7",null,null,null,null,null,null,null,null,null,null,null,null,null,null,null,null,null,null,null,null,null,null,null,null,null,null,null,null,null,null,null,{"$f":"IF(RIGHT(H367)=\"j\",LEFT(H367))+IF(RIGHT(I367)=\"j\",LEFT(I367))+IF(RIGHT(J367)=\"j\",LEFT(J367))+IF(RIGHT(K367)=\"j\",LEFT(K367))+IF(RIGHT(L367)=\"j\",LEFT(L367))+IF(RIGHT(M367)=\"j\",LEFT(M367))+IF(RIGHT(N367)=\"j\",LEFT(N367))+IF(RIGHT(O367)=\"j\",LEFT(O367))+IF(RIGHT(P367)=\"j\",LEFT(P367))+IF(RIGHT(Q367)=\"j\",LEFT(Q367))+IF(RIGHT(R367)=\"j\",LEFT(R367))+IF(RIGHT(S367)=\"j\",LEFT(S367))+IF(RIGHT(T367)=\"j\",LEFT(T367))+IF(RIGHT(U367)=\"j\",LEFT(U367))+IF(RIGHT(V367)=\"j\",LEFT(V367))+IF(RIGHT(W367)=\"j\",LEFT(W367))+IF(RIGHT(X367)=\"j\",LEFT(X367))+IF(RIGHT(Y367)=\"j\",LEFT(Y367))+IF(RIGHT(Z367)=\"j\",LEFT(Z367))+IF(RIGHT(AA367)=\"j\",LEFT(AA367))+IF(RIGHT(AB367)=\"j\",LEFT(AB367))+IF(RIGHT(AC367)=\"j\",LEFT(AC367))+IF(RIGHT(AD367)=\"j\",LEFT(AD367))+IF(RIGHT(AE367)=\"j\",LEFT(AE367))+IF(RIGHT(AF367)=\"j\",LEFT(AF367))+IF(RIGHT(AG367)=\"j\",LEFT(AG367))+IF(RIGHT(AH367)=\"j\",LEFT(AH367))+IF(RIGHT(AI367)=\"j\",LEFT(AI367))+IF(RIGHT(AJ367)=\"j\",LEFT(AJ367))+IF(RIGHT(AK367)=\"j\",LEFT(AK367))+IF(RIGHT(AL367)=\"j\",LEFT(AL367))","v":0},null,{"$f":"SUM(H367:AL367)","v":0}]
[7,0,0,0,2,"محمد بن الشيخ","الثانية 7",null,null,null,null,null,null,null,null,null,null,null,null,null,null,null,null,null,null,null,null,null,null,null,null,null,null,null,null,null,null,null,0,null,0]
[7,0,0,0,3,"اسامة خالذي","الثانية 7",null,null,null,null,null,null,null,null,null,null,null,null,null,null,null,null,null,null,null,null,null,null,null,null,null,null,null,null,null,null,null,0,null,0]
[7,0,0,0,4,"شيماء المديقي","الثانية 7",null,null,null,null,null,null,null,null,null,null,null,null,null,null,null,null,null,null,null,null,null,null,null,null,null,null,null,null,null,null,null,0,null,0]
[7,0,0,0,5,"امال الطلحاوي","الثانية 7",null,null,null,null,null,null,null,null,null,null,null,null,null,null,null,null,null,null,null,null,null,null,null,null,null,null,null,null,null,null,null,0,null,0]
[7,0,0,0,6,"امنة ودوه","الثانية 7",null,null,null,null,null,null,null,null,null,null,null,null,null,null,null,null,null,null,null,null,null,null,null,null,null,null,null,null,null,null,null,0,null,0]
[7,0,0,0,7,"نجيب قاسمي","الثانية 7",null,null,null,null,null,null,null,null,null,null,null,null,null,null,null,null,null,null,null,null,null,null,null,null,null,null,null,null,null,null,null,0,null,0]
[7,0,0,2,8,"اسامة ايت زهرة","الثانية 7",null,null,null,null,null,null,null,null,null,null,null,2,null,null,null,null,null,null,null,null,null,null,null,null,null,null,null,null,null,null,null,0,null,2]
[7,0,0,0,9,"كريمة الزهويد","الثانية 7",null,null,null,null,null,null,null,null,null,null,null,null,null,null,null,null,null,null,null,null,null,null,null,null,null,null,null,null,null,null,null,0,null,0]
[7,0,0,0,10,"خولة الداودي","الثانية 7",null,null,null,null,null,null,null,null,null,null,null,null,null,null,null,null,null,null,null,null,null,null,null,null,null,null,null,null,null,null,null,0,null,0]
[7,0,0,0,11,"اسية بورزيق","الثانية 7",null,null,null,null,null,null,null,null,null,null,null,null,null,null,null,null,null,null,null,null,null,null,null,null,null,null,null,null,null,null,null,0,null,0]
[7,0,0,0,12,"عبد الرحمان بوزضا","الثانية 7",null,null,null,null,null,null,null,null,null,null,null,null,null,null,null,null,null,null,null,null,null,null,null,null,null,null,null,null,null,null,null,0,null,0]
[7,0,0,6,13,"شفيق امادين","الثانية 7",null,null,null,1,null,null,null,null,null,3,1,1,null,null,null,null,null,null,null,null,null,null,null,null,null,null,null,null,null,null,null,0,null,6]
[7,0,0,4,14,"حفيظة تحساي","الثانية 7",null,null,1,null,null,null,null,null,null,3,null,null,null,null,null,null,null,null,null,null,null,null,null,null,null,null,null,null,null,null,null,0,null,4]
[7,3,0,1,15,"فؤاد ابوسالم","الثانية 7",null,null,null,"3j",null,null,null,null,null,null,null,1,null,null,null,null,null,null,null,null,null,null,null,null,null,null,null,null,null,null,null,3,null,1]
[7,0,0,0,16,"اميمة سائس","الثانية 7",null,null,null,null,null,null,null,null,null,null,null,null,null,null,null,null,null,null,null,null,null,null,null,null,null,null,null,null,null,null,null,0,null,0]
[7,0,0,0,17,"ايمن كنواوي","الثانية 7",null,null,null,null,null,null,null,null,null,null,null,null,null,null,null,null,null,null,null,null,null,null,null,null,null,null,null,null,null,null,null,0,null,0]
[7,0,0,0,18,"سهيلة الغزلاني","الثانية 7",null,null,null,null,null,null,null,null,null,null,null,null,null,null,null,null,null,null,null,null,null,null,null,null,null,null,null,null,null,null,null,0,null,0]
[7,0,0,2,19,"حمزة عبد الواحد","الثانية 7",null,null,1,null,null,null,null,null,null,null,null,1,null,null,null,null,null,null,null,null,null,null,null,null,null,null,null,null,null,null,null,0,null,2]
[7,0,0,0,20,"احمد كرامي","الثانية 7",null,null,null,null,null,null,null,null,null,null,null,null,null,null,null,null,null,null,null,null,null,null,null,null,null,null,null,null,null,null,null,0,null,0]
[7,6,0,2,21,"يسرى الحاوظ","الثانية 7",null,2,null,"6j",null,null,null,null,null,null,null,null,null,null,null,null,null,null,null,null,null,null,null,null,null,null,null,null,null,null,null,6,null,2]
[7,0,0,0,22,"رانية قانوني","الثانية 7",null,null,null,null,null,null,null,null,null,null,null,null,null,null,null,null,null,null,null,null,null,null,null,null,null,null,null,null,null,null,null,0,null,0]
[7,0,0,0,23,"الياس متوكل","الثانية 7",null,null,null,null,null,null,null,null,null,null,null,null,null,null,null,null,null,null,null,null,null,null,null,null,null,null,null,null,null,null,null,0,null,0]
[7,0,0,4,24,"محمد ابودلال","الثانية 7",null,null,null,null,null,null,null,null,null,3,null,1,null,null,null,null,null,null,null,null,null,null,null,null,null,null,null,null,null,null,null,0,null,4]
[7,0,0,0,25,"مروة ناجي","الثانية 7",null,null,null,null,null,null,null,null,null,null,null,null,null,null,null,null,null,null,null,null,null,null,null,null,null,null,null,null,null,null,null,0,null,0]
[7,0,0,0,26,"اميمة ايت همو اشو","الثانية 7",null,null,null,null,null,null,null,null,null,null,null,null,null,null,null,null,null,null,null,null,null,null,null,null,null,null,null,null,null,null,null,0,null,0]
[7,0,0,0,27,"منال لغبالي","الثانية 7",null,null,null,null,null,null,null,null,null,null,null,null,null,null,null,null,null,null,null,null,null,null,null,null,null,null,null,null,null,null,null,0,null,0]
[7,0,0,0,28,"فاطمة الزهراء حمادي","الثانية 7",null,null,null,null,null,null,null,null,null,null,null,null,null,null,null,null,null,null,null,null,null,null,null,null,null,null,null,null,null,null,null,0,null,0]
[7,0,0,2,29,"سميحة سميح","الثانية 7",null,null,null,2,null,null,null,null,null,null,null,null,null,null,null,null,null,null,null,null,null,null,null,null,null,null,null,null,null,null,null,0,null,2]
[7,0,0,1,30,"احمد مبارك حسيان ","الثانية 7",null,null,null,null,null,null,null,null,null,null,1,null,null,null,null,null,null,null,null,null,null,null,null,null,null,null,null,null,null,null,null,0,null,1]
[7,0,0,0,31,"حسناء احدري","الثانية 7",null,null,null,null,null,null,null,null,null,null,null,null,null,null,null,null,null,null,null,null,null,null,null,null,null,null,null,null,null,null,null,0,null,0]
[7,0,0,0,32,"اميمة كرضيان","الثانية 7",null,null,null,null,null,null,null,null,null,null,null,null,null,null,null,null,null,null,null,null,null,null,null,null,null,null,null,null,null,null,null,0,null,0]
[7,0,0,2,33,"اديب الخطابي","الثانية 7",null,null,1,null,null,null,null,null,null,null,null,1,null,null,null,null,null,null,null,null,null,null,null,null,null,null,null,null,null,null,null,0,null,2]
[7,0,0,6,34,"نهيلة نعيم","الثانية 7",null,null,1,2,null,null,null,null,null,3,null,null,null,null,null,null,null,null,null,null,null,null,null,null,null,null,null,null,null,null,null,0,null,6]
[7,0,0,1,35,"ليلى البوهالي","الثانية 7",null,null,null,1,null,null,null,null,null,null,null,null,null,null,null,null,null,null,null,null,null,null,null,null,null,null,null,null,null,null,null,0,null,1]
[7,0,0,4,36,"وسيمة ابريك","الثانية 7",null,null,1,null,null,null,null,null,null,3,null,null,null,null,null,null,null,null,null,null,null,null,null,null,null,null,null,null,null,null,null,0,null,4]
[7,0,0,0,37,"كريم يارزي","الثانية 7",null,null,null,null,null,null,null,null,null,null,null,null,null,null,null,null,null,null,null,null,null,null,null,null,null,null,null,null,null,null,null,0,null,0]
[7,0,0,0,38,"","",null,null,null,null,null,null,null,null,null,null,null,null,null,null,null,null,null,null,null,null,null,null,null,null,null,null,null,null,null,null,null,0,null,0]
[null,0,0,0,39,"","",null,null,null,null,null,null,null,null,null,null,null,null,null,null,null,null,null,null,null,null,null,null,null,null,null,null,null,null,null,null,null,0,null,0]
[null,0,0,0,40,"","",null,null,null,null,null,null,null,null,null,null,null,null,null,null,null,null,null,null,null,null,null,null,null,null,null,null,null,null,null,null,null,0,null,0]
[null,0,0,0,41,"","",null,null,null,null,null,null,null,null,null,null,null,null,null,null,null,null,null,null,null,null,null,null,null,null,null,null,null,null,null,null,null,0,null,0]
[null,0,0,0,"","","",null,null,null,null,null,null,null,null,null,null,null,null,null,null,null,null,null,null,null,null,null,null,null,null,null,null,null,null,null,null,null,0,null,0]
[null,0,0,0,"","","",null,null,null,null,null,null,null,null,null,null,null,null,null,null,null,null,null,null,null,null,null,null,null,null,null,null,null,null,null,null,null,0,null,0]
[null,0,0,0,"","","",null,null,null,null,null,null,null,null,null,null,null,null,null,null,null,null,null,null,null,null,null,null,null,null,null,null,null,null,null,null,null,0,null,0]
[null,0,0,0,"","","",null,null,null,null,null,null,null,null,null,null,null,null,null,null,null,null,null,null,null,null,null,null,null,null,null,null,null,null,null,null,null,0,null,0]
[null,0,0,0,"","","",null,null,null,null,null,null,null,null,null,null,null,null,null,null,null,null,null,null,null,null,null,null,null,null,null,null,null,null,null,null,null,0,null,0]
[null,0,0,0,"","","",null,null,null,null,null,null,null,null,null,null,null,null,null,null,null,null,null,null,null,null,null,null,null,null,null,null,null,null,null,null,null,0,null,0]
[null,0,0,0,"","","",null,null,null,null,null,null,null,null,null,null,null,null,null,null,null,null,null,null,null,null,null,null,null,null,null,null,null,null,null,null,null,0,null,0]
[null,0,0,0,"","","",null,null,null,null,null,null,null,null,null,null,null,null,null,null,null,null,null,null,null,null,null,null,null,null,null,null,null,null,null,null,null,0,null,0]
[null,0,0,0,"","","",null,null,null,null,null,null,null,null,null,null,null,null,null,null,null,null,null,null,null,null,null,null,null,null,null,null,null,null,null,null,null,0,null,0]
[null,0,0,0]
[null,0,0,0,null,null,null,null,null,null,null,null,null,null,null,null,"الثانية 8"]
[null,0,0,0]
[null,0,0,0]
[null,0,0,0]
[null,0,0,0]
[null,0,0,0,"رقم\nالتلميذ","الإسم و النسب","القسم","الأيـــــــــــــــــــــــــــــــــــــــــــــــــــــــــــــــــــــــــــام"]
[null,0,0,"31",null,null,null,"01","02","03","04","05","06","07","08","09","10","11","12","13",14,"15","16","17","18","19","20","21","22","23","24","25","26","27","28","29","30","31",null,null,"31"]
[null,0,0,31,null,null,null,null,null,3,4,5,6,7,8,9,10,11,12,13,14,15,16,17,18,19,20,21,22,23,24,25,26,27,28,29,30,31,null,null,31]
[8,0,0,2,1,"هشام ايت عبد الواحد","الثانية 8",null,null,null,null,null,null,null,null,2,null,null,null,null,null,null,null,null,null,null,null,null,null,null,null,null,null,null,null,null,null,null,{"$f":"IF(RIGHT(H426)=\"j\",LEFT(H426))+IF(RIGHT(I426)=\"j\",LEFT(I426))+IF(RIGHT(J426)=\"j\",LEFT(J426))+IF(RIGHT(K426)=\"j\",LEFT(K426))+IF(RIGHT(L426)=\"j\",LEFT(L426))+IF(RIGHT(M426)=\"j\",LEFT(M426))+IF(RIGHT(N426)=\"j\",LEFT(N426))+IF(RIGHT(O426)=\"j\",LEFT(O426))+IF(RIGHT(P426)=\"j\",LEFT(P426))+IF(RIGHT(Q426)=\"j\",LEFT(Q426))+IF(RIGHT(R426)=\"j\",LEFT(R426))+IF(RIGHT(S426)=\"j\",LEFT(S426))+IF(RIGHT(T426)=\"j\",LEFT(T426))+IF(RIGHT(U426)=\"j\",LEFT(U426))+IF(RIGHT(V426)=\"j\",LEFT(V426))+IF(RIGHT(W426)=\"j\",LEFT(W426))+IF(RIGHT(X426)=\"j\",LEFT(X426))+IF(RIGHT(Y426)=\"j\",LEFT(Y426))+IF(RIGHT(Z426)=\"j\",LEFT(Z426))+IF(RIGHT(AA426)=\"j\",LEFT(AA426))+IF(RIGHT(AB426)=\"j\",LEFT(AB426))+IF(RIGHT(AC426)=\"j\",LEFT(AC426))+IF(RIGHT(AD426)=\"j\",LEFT(AD426))+IF(RIGHT(AE426)=\"j\",LEFT(AE426))+IF(RIGHT(AF426)=\"j\",LEFT(AF426))+IF(RIGHT(AG426)=\"j\",LEFT(AG426))+IF(RIGHT(AH426)=\"j\",LEFT(AH426))+IF(RIGHT(AI426)=\"j\",LEFT(AI426))+IF(RIGHT(AJ426)=\"j\",LEFT(AJ426))+IF(RIGHT(AK426)=\"j\",LEFT(AK426))+IF(RIGHT(AL426)=\"j\",LEFT(AL426))","v":0},null,{"$f":"SUM(H426:AL426)","v":2}]
[8,0,0,0,2,"غزلان وعدود","الثانية 8",null,null,null,null,null,null,null,null,null,null,null,null,null,null,null,null,null,null,null,null,null,null,null,null,null,null,null,null,null,null,null,0,null,0]
[8,{"$f":"AM428","v":0},{"$f":"AN428","v":0},{"$f":"AO428","v":0},3,"الياس بوكديف","الثانية 8",null,null,null,null,null,null,null,null,null,null,null,null,null,null,null,null,null,null,null,null,null,null,null,null,null,null,null,null,null,null,null,0,null,0]
[8,0,0,0,4,"منى فريد","الثانية 8",null,null,null,null,null,null,null,null,null,null,null,null,null,null,null,null,null,null,null,null,null,null,null,null,null,null,null,null,null,null,null,0,null,0]
[8,0,0,0,5,"فريدة خالدي","الثانية 8",null,null,null,null,null,null,null,null,null,null,null,null,null,null,null,null,null,null,null,null,null,null,null,null,null,null,null,null,null,null,null,0,null,0]
[8,0,0,0,6,"يوسف اروكا","الثانية 8",null,null,null,null,null,null,null,null,null,null,null,null,null,null,null,null,null,null,null,null,null,null,null,null,null,null,null,null,null,null,null,0,null,0]
[8,0,0,1,7,"محمد اخوتيل","الثانية 8",null,null,null,null,null,null,null,1,null,null,null,null,null,null,null,null,null,null,null,null,null,null,null,null,null,null,null,null,null,null,null,0,null,1]
[8,0,0,1,8,"حمزة ختيمي","الثانية 8",null,null,null,null,null,null,1,null,null,null,null,null,null,null,null,null,null,null,null,null,null,null,null,null,null,null,null,null,null,null,null,0,null,1]
[8,0,0,0,9,"حسناء المعطاوي","الثانية 8",null,null,null,null,null,null,null,null,null,null,null,null,null,null,null,null,null,null,null,null,null,null,null,null,null,null,null,null,null,null,null,0,null,0]
[8,0,0,0,10,"كنزة اعبو","الثانية 8",null,null,null,null,null,null,null,null,null,null,null,null,null,null,null,null,null,null,null,null,null,null,null,null,null,null,null,null,null,null,null,0,null,0]
[8,0,0,0,11,"اسماء الوردي","الثانية 8",null,null,null,null,null,null,null,null,null,null,null,null,null,null,null,null,null,null,null,null,null,null,null,null,null,null,null,null,null,null,null,0,null,0]
[8,0,0,1,12,"محمد ابراغ","الثانية 8",null,null,null,null,null,null,null,1,null,null,null,null,null,null,null,null,null,null,null,null,null,null,null,null,null,null,null,null,null,null,null,0,null,1]
[8,0,0,5,13,"سهيلة لهدادي","الثانية 8",null,null,null,null,null,null,1,null,3,null,1,null,null,null,null,null,null,null,null,null,null,null,null,null,null,null,null,null,null,null,null,0,null,5]
[8,0,0,0,14,"نورة اسالم","الثانية 8",null,null,null,null,null,null,null,null,null,null,null,null,null,null,null,null,null,null,null,null,null,null,null,null,null,null,null,null,null,null,null,0,null,0]
[8,0,0,0,15,"مروان بويس","الثانية 8",null,null,null,null,null,null,null,null,null,null,null,null,null,null,null,null,null,null,null,null,null,null,null,null,null,null,null,null,null,null,null,0,null,0]
[8,0,0,0,16,"اكرام قيساوي","الثانية 8",null,null,null,null,null,null,null,null,null,null,null,null,null,null,null,null,null,null,null,null,null,null,null,null,null,null,null,null,null,null,null,0,null,0]
[8,0,0,0,17,"ايمان فرماق","الثانية 8",null,null,null,null,null,null,null,null,null,null,null,null,null,null,null,null,null,null,null,null,null,null,null,null,null,null,null,null,null,null,null,0,null,0]
[8,0,0,0,18,"اسماء ايت خويا","الثانية 8",null,null,null,null,null,null,null,null,null,null,null,null,null,null,null,null,null,null,null,null,null,null,null,null,null,null,null,null,null,null,null,0,null,0]
[8,0,0,0,19,"زهير شمان","الثانية 8",null,null,null,null,null,null,null,null,null,null,null,null,null,null,null,null,null,null,null,null,null,null,null,null,null,null,null,null,null,null,null,0,null,0]
[8,0,0,2,20,"صلاح الدين اغمور","الثانية 8",null,null,null,null,null,null,null,null,2,null,null,null,null,null,null,null,null,null,null,null,null,null,null,null,null,null,null,null,null,null,null,0,null,2]
[8,0,0,0,21,"غزلان يحياوي","الثانية 8",null,null,null,null,null,null,null,null,null,null,null,null,null,null,null,null,null,null,null,null,null,null,null,null,null,null,null,null,null,null,null,0,null,0]
[8,0,0,0,22,"نصر الدين التعقيلي","الثانية 8",null,null,null,null,null,null,null,null,null,null,null,null,null,null,null,null,null,null,null,null,null,null,null,null,null,null,null,null,null,null,null,0,null,0]
[8,0,0,0,23,"خديجة مرشوق","الثانية 8",null,null,null,null,null,null,null,null,null,null,null,null,null,null,null,null,null,null,null,null,null,null,null,null,null,null,null,null,null,null,null,0,null,0]
[8,0,0,0,24,"سارة بورشوق","الثانية 8",null,null,null,null,null,null,null,null,null,null,null,null,null,null,null,null,null,null,null,null,null,null,null,null,null,null,null,null,null,null,null,0,null,0]
[8,0,0,1,25,"ياسين ابرهو","الثانية 8",null,null,null,null,null,null,null,null,1,null,null,null,null,null,null,null,null,null,null,null,null,null,null,null,null,null,null,null,null,null,null,0,null,1]
[8,0,0,1,26,"عبد العزيز الباشا","الثانية 8",null,null,null,null,null,null,null,null,1,null,null,null,null,null,null,null,null,null,null,null,null,null,null,null,null,null,null,null,null,null,null,0,null,1]
[8,0,0,0,27,"خديجة المرشيق","الثانية 8",null,null,null,null,null,null,null,null,null,null,null,null,null,null,null,null,null,null,null,null,null,null,null,null,null,null,null,null,null,null,null,0,null,0]
[8,0,0,0,28,"بشرى ايت رحو","الثانية 8",null,null,null,null,null,null,null,null,null,null,null,null,null,null,null,null,null,null,null,null,null,null,null,null,null,null,null,null,null,null,null,0,null,0]
[8,0,0,0,29,"سكينة ايت بها","الثانية 8",null,null,null,null,null,null,null,null,null,null,null,null,null,null,null,null,null,null,null,null,null,null,null,null,null,null,null,null,null,null,null,0,null,0]
[8,0,0,0,30,"بوبكر حيمي","الثانية 8",null,null,null,null,null,null,null,null,null,null,null,null,null,null,null,null,null,null,null,null,null,null,null,null,null,null,null,null,null,null,null,0,null,0]
[8,0,0,4,31,"اشرف جوما","الثانية 8",null,null,null,null,null,null,null,1,3,null,null,null,null,null,null,null,null,null,null,null,null,null,null,null,null,null,null,null,null,null,null,0,null,4]
[8,0,0,0,32,"منى بوخنشوش","الثانية 8",null,null,null,null,null,null,null,null,null,null,null,null,null,null,null,null,null,null,null,null,null,null,null,null,null,null,null,null,null,null,null,0,null,0]
[8,0,0,0,33,"حفصة العامري","الثانية 8",null,null,null,null,null,null,null,null,null,null,null,null,null,null,null,null,null,null,null,null,null,null,null,null,null,null,null,null,null,null,null,0,null,0]
[8,0,0,0,34,"اسماء عزوزي","الثانية 8",null,null,null,null,null,null,null,null,null,null,null,null,null,null,null,null,null,null,null,null,null,null,null,null,null,null,null,null,null,null,null,0,null,0]
[8,0,0,0,35,"يسرى ايت وبا","الثانية 8",null,null,null,null,null,null,null,null,null,null,null,null,null,null,null,null,null,null,null,null,null,null,null,null,null,null,null,null,null,null,null,0,null,0]
[8,0,0,0,36,"الياس بعكريم","الثانية 8",null,null,null,null,null,null,null,null,null,null,null,null,null,null,null,null,null,null,null,null,null,null,null,null,null,null,null,null,null,null,null,0,null,0]
[8,0,0,7,37,"محمد داولو","الثانية 8",null,1,null,null,null,null,null,1,3,null,null,2,null,null,null,null,null,null,null,null,null,null,null,null,null,null,null,null,null,null,null,0,null,7]
[8,0,0,2,38,"حمزة اشنا","الثانية 8",null,null,null,null,null,null,null,null,2,null,null,null,null,null,null,null,null,null,null,null,null,null,null,null,null,null,null,null,null,null,null,0,null,2]
[null,0,0,0,39,"","",null,null,null,null,null,null,null,null,null,null,null,null,null,null,null,null,null,null,null,null,null,null,null,null,null,null,null,null,null,null,null,0,null,0]
[null,0,0,0,40,"","",null,null,null,null,null,null,null,null,null,null,null,null,null,null,null,null,null,null,null,null,null,null,null,null,null,null,null,null,null,null,null,0,null,0]
[null,0,0,0,"","","",null,null,null,null,null,null,null,null,null,null,null,null,null,null,null,null,null,null,null,null,null,null,null,null,null,null,null,null,null,null,null,0,null,0]
[null,0,0,0,"","","",null,null,null,null,null,null,null,null,null,null,null,null,null,null,null,null,null,null,null,null,null,null,null,null,null,null,null,null,null,null,null,0,null,0]
[null,0,0,0,"","","",null,null,null,null,null,null,null,null,null,null,null,null,null,null,null,null,null,null,null,null,null,null,null,null,null,null,null,null,null,null,null,0,null,0]
[null,0,0,0,"","","",null,null,null,null,null,null,null,null,null,null,null,null,null,null,null,null,null,null,null,null,null,null,null,null,null,null,null,null,null,null,null,0,null,0]
[null,0,0,0,"","","",null,null,null,null,null,null,null,null,null,null,null,null,null,null,null,null,null,null,null,null,null,null,null,null,null,null,null,null,null,null,null,0,null,0]
[null,0,0,0,"","","",null,null,null,null,null,null,null,null,null,null,null,null,null,null,null,null,null,null,null,null,null,null,null,null,null,null,null,null,null,null,null,0,null,0]
[null,0,0,0,"","","",null,null,null,null,null,null,null,null,null,null,null,null,null,null,null,null,null,null,null,null,null,null,null,null,null,null,null,null,null,null,null,0,null,0]
[null,0,0,0,"","","",null,null,null,null,null,null,null,null,null,null,null,null,null,null,null,null,null,null,null,null,null,null,null,null,null,null,null,null,null,null,null,0,null,0]
[null,0,0,0,"","","",null,null,null,null,null,null,null,null,null,null,null,null,null,null,null,null,null,null,null,null,null,null,null,null,null,null,null,null,null,null,null,0,null,0]
[null,0,0,0,"","","",null,null,null,null,null,null,null,null,null,null,null,null,null,null,null,null,null,null,null,null,null,null,null,null,null,null,null,null,null,null,null,0,null,0]
[null,0,0,0]
[null,0,0,0,null,null,null,null,null,null,null,null,null,null,null,null,"الثانية 9"]
[null,0,0,0]
[null,0,0,0]
[null,0,0,0]
[null,0,0,0]
[null,0,0,0,"رقم\nالتلميذ","الإسم و النسب","القسم","الأيـــــــــــــــــــــــــــــــــــــــــــــــــــــــــــــــــــــــــــام"]
[null,0,0,"31",null,null,null,"01","02","03","04","05","06","07","08","09","10","11","12","13",14,"15","16","17","18","19","20","21","22","23","24","25","26","27","28","29","30","31",null,null,"31"]
[null,0,0,31,null,null,null,null,null,3,4,5,6,7,8,9,10,11,12,13,14,15,16,17,18,19,20,21,22,23,24,25,26,27,28,29,30,31,null,null,31]
[9,0,0,0,1,"ايوب وناصر","الثانية 9",null,null,null,null,null,null,null,null,null,null,null,null,null,null,null,null,null,null,null,null,null,null,null,null,null,null,null,null,null,null,null,{"$f":"IF(RIGHT(H485)=\"j\",LEFT(H485))+IF(RIGHT(I485)=\"j\",LEFT(I485))+IF(RIGHT(J485)=\"j\",LEFT(J485))+IF(RIGHT(K485)=\"j\",LEFT(K485))+IF(RIGHT(L485)=\"j\",LEFT(L485))+IF(RIGHT(M485)=\"j\",LEFT(M485))+IF(RIGHT(N485)=\"j\",LEFT(N485))+IF(RIGHT(O485)=\"j\",LEFT(O485))+IF(RIGHT(P485)=\"j\",LEFT(P485))+IF(RIGHT(Q485)=\"j\",LEFT(Q485))+IF(RIGHT(R485)=\"j\",LEFT(R485))+IF(RIGHT(S485)=\"j\",LEFT(S485))+IF(RIGHT(T485)=\"j\",LEFT(T485))+IF(RIGHT(U485)=\"j\",LEFT(U485))+IF(RIGHT(V485)=\"j\",LEFT(V485))+IF(RIGHT(W485)=\"j\",LEFT(W485))+IF(RIGHT(X485)=\"j\",LEFT(X485))+IF(RIGHT(Y485)=\"j\",LEFT(Y485))+IF(RIGHT(Z485)=\"j\",LEFT(Z485))+IF(RIGHT(AA485)=\"j\",LEFT(AA485))+IF(RIGHT(AB485)=\"j\",LEFT(AB485))+IF(RIGHT(AC485)=\"j\",LEFT(AC485))+IF(RIGHT(AD485)=\"j\",LEFT(AD485))+IF(RIGHT(AE485)=\"j\",LEFT(AE485))+IF(RIGHT(AF485)=\"j\",LEFT(AF485))+IF(RIGHT(AG485)=\"j\",LEFT(AG485))+IF(RIGHT(AH485)=\"j\",LEFT(AH485))+IF(RIGHT(AI485)=\"j\",LEFT(AI485))+IF(RIGHT(AJ485)=\"j\",LEFT(AJ485))+IF(RIGHT(AK485)=\"j\",LEFT(AK485))+IF(RIGHT(AL485)=\"j\",LEFT(AL485))","v":0},null,{"$f":"SUM(H485:AL485)","v":0}]
[9,0,0,1,2,"ياسمين بلفارس","الثانية 9",null,null,null,null,null,null,null,null,1,null,null,null,null,null,null,null,null,null,null,null,null,null,null,null,null,null,null,null,null,null,null,0,null,1]
[9,0,0,0,3,"سلمى بعزيز","الثانية 9",null,null,null,null,null,null,null,null,null,null,null,null,null,null,null,null,null,null,null,null,null,null,null,null,null,null,null,null,null,null,null,0,null,0]
[9,{"$f":"AM488","v":0},{"$f":"AN488","v":0},{"$f":"AO488","v":0},4,"بسمة مرماد","الثانية 9",null,null,null,null,null,null,null,null,null,null,null,null,null,null,null,null,null,null,null,null,null,null,null,null,null,null,null,null,null,null,null,0,null,0]
[9,0,0,0,5,"عبد الصمد كمان","الثانية 9",null,null,null,null,null,null,null,null,null,null,null,null,null,null,null,null,null,null,null,null,null,null,null,null,null,null,null,null,null,null,null,0,null,0]
[9,0,0,0,6,"امينة ناحي","الثانية 9",null,null,null,null,null,null,null,null,null,null,null,null,null,null,null,null,null,null,null,null,null,null,null,null,null,null,null,null,null,null,null,0,null,0]
[9,0,0,0,7,"مريم تيسير","الثانية 9",null,null,null,null,null,null,null,null,null,null,null,null,null,null,null,null,null,null,null,null,null,null,null,null,null,null,null,null,null,null,null,0,null,0]
[9,0,0,0,8,"وئام ابومالك","الثانية 9",null,null,null,null,null,null,null,null,null,null,null,null,null,null,null,null,null,null,null,null,null,null,null,null,null,null,null,null,null,null,null,0,null,0]
[9,0,0,0,9,"ايوب بحفيظ","الثانية 9",null,null,null,null,null,null,null,null,null,null,null,null,null,null,null,null,null,null,null,null,null,null,null,null,null,null,null,null,null,null,null,0,null,0]
[9,3,0,3,10,"فاطمة الزهراء الترش","الثانية 9",null,null,null,"3j",null,null,null,null,1,null,null,2,null,null,null,null,null,null,null,null,null,null,null,null,null,null,null,null,null,null,null,3,null,3]
[9,0,0,0,11,"يحيى بن تحموت","الثانية 9",null,null,null,null,null,null,null,null,null,null,null,null,null,null,null,null,null,null,null,null,null,null,null,null,null,null,null,null,null,null,null,0,null,0]
[9,0,0,0,12,"مريم هباز","الثانية 9",null,null,null,null,null,null,null,null,null,null,null,null,null,null,null,null,null,null,null,null,null,null,null,null,null,null,null,null,null,null,null,0,null,0]
[9,0,0,0,13,"منى سائس","الثانية 9",null,null,null,null,null,null,null,null,null,null,null,null,null,null,null,null,null,null,null,null,null,null,null,null,null,null,null,null,null,null,null,0,null,0]
[9,0,0,0,14,"عبد الله بوكثير","الثانية 9",null,null,null,null,null,null,null,null,null,null,null,null,null,null,null,null,null,null,null,null,null,null,null,null,null,null,null,null,null,null,null,0,null,0]
[9,0,0,0,15,"خديجة المتوكل","الثانية 9",null,null,null,null,null,null,null,null,null,null,null,null,null,null,null,null,null,null,null,null,null,null,null,null,null,null,null,null,null,null,null,0,null,0]
[9,7,0,2,16,"ربيعة الديكوردي","الثانية 9",null,1,null,null,null,null,null,null,1,null,"5j","2j",null,null,null,null,null,null,null,null,null,null,null,null,null,null,null,null,null,null,null,7,null,2]
[9,0,0,2,17,"محمد انس الزيتوني","الثانية 9",null,null,null,2,null,null,null,null,null,null,null,null,null,null,null,null,null,null,null,null,null,null,null,null,null,null,null,null,null,null,null,0,null,2]
[9,0,0,0,18,"هجر حبيبي","الثانية 9",null,null,null,null,null,null,null,null,null,null,null,null,null,null,null,null,null,null,null,null,null,null,null,null,null,null,null,null,null,null,null,0,null,0]
[9,0,0,4,19,"راضية موشا ","الثانية 9",null,null,null,null,null,null,4,null,null,null,null,null,null,null,null,null,null,null,null,null,null,null,null,null,null,null,null,null,null,null,null,0,null,4]
[9,0,0,2,20,"عبد المجيد اهديدي","الثانية 9",null,null,null,null,null,null,2,null,null,null,null,null,null,null,null,null,null,null,null,null,null,null,null,null,null,null,null,null,null,null,null,0,null,2]
[9,0,0,0,21,"نوفل ياسر","الثانية 9",null,null,null,null,null,null,null,null,null,null,null,null,null,null,null,null,null,null,null,null,null,null,null,null,null,null,null,null,null,null,null,0,null,0]
[9,2,0,0,22,"سفيان غوات","الثانية 9",null,null,null,"2j",null,null,null,null,null,null,null,null,null,null,null,null,null,null,null,null,null,null,null,null,null,null,null,null,null,null,null,2,null,0]
[9,0,0,2,23,"مروان المزواري","الثانية 9",null,null,null,2,null,null,null,null,null,null,null,null,null,null,null,null,null,null,null,null,null,null,null,null,null,null,null,null,null,null,null,0,null,2]
[9,0,0,0,24,"سفيان ادمبارك","الثانية 9",null,null,null,null,null,null,null,null,null,null,null,null,null,null,null,null,null,null,null,null,null,null,null,null,null,null,null,null,null,null,null,0,null,0]
[9,0,0,0,25,"سفيان ابهو","الثانية 9",null,null,null,null,null,null,null,null,null,null,null,null,null,null,null,null,null,null,null,null,null,null,null,null,null,null,null,null,null,null,null,0,null,0]
[9,0,0,0,26,"مصطفى منصوري","الثانية 9",null,null,null,null,null,null,null,null,null,null,null,null,null,null,null,null,null,null,null,null,null,null,null,null,null,null,null,null,null,null,null,0,null,0]
[9,3,0,0,27,"يوسف شربو","الثانية 9",null,null,null,"3j",null,null,null,null,null,null,null,null,null,null,null,null,null,null,null,null,null,null,null,null,null,null,null,null,null,null,null,3,null,0]
[9,0,0,11,28,"ابتسام العباس","الثانية 9",null,null,null,2,null,null,null,1,1,4,2,1,null,null,null,null,null,null,null,null,null,null,null,null,null,null,null,null,null,null,null,0,null,11]
[9,0,0,0,29,"وفاء بوحلبة","الثانية 9",null,null,null,null,null,null,null,null,null,null,null,null,null,null,null,null,null,null,null,null,null,null,null,null,null,null,null,null,null,null,null,0,null,0]
[9,0,0,0,30,"عبير المودن","الثانية 9",null,null,null,null,null,null,null,null,null,null,null,null,null,null,null,null,null,null,null,null,null,null,null,null,null,null,null,null,null,null,null,0,null,0]
[9,0,0,1,31,"اميمة ايت ايدار","الثانية 9",null,null,null,null,null,null,null,null,null,null,1,null,null,null,null,null,null,null,null,null,null,null,null,null,null,null,null,null,null,null,null,0,null,1]
[9,0,0,0,32,"حفصة جعفري","الثانية 9",null,null,null,null,null,null,null,null,null,null,null,null,null,null,null,null,null,null,null,null,null,null,null,null,null,null,null,null,null,null,null,0,null,0]
[9,0,0,0,33,"خديجة مدو","الثانية 9",null,null,null,null,null,null,null,null,null,null,null,null,null,null,null,null,null,null,null,null,null,null,null,null,null,null,null,null,null,null,null,0,null,0]
[9,0,0,1,34,"ايمن الزين","الثانية 9",null,null,null,null,null,null,null,null,null,null,null,1,null,null,null,null,null,null,null,null,null,null,null,null,null,null,null,null,null,null,null,0,null,1]
[9,0,0,0,35,"جهينة تغيا","الثانية 9",null,null,null,null,null,null,null,null,null,null,null,null,null,null,null,null,null,null,null,null,null,null,null,null,null,null,null,null,null,null,null,0,null,0]
[9,0,0,1,36,"مريم تغيا","الثانية 9",null,null,null,null,null,null,null,null,null,1,null,null,null,null,null,null,null,null,null,null,null,null,null,null,null,null,null,null,null,null,null,0,null,1]
[null,0,0,0,37,"محمد الوردي","الثانية 9",null,null,null,null,null,null,null,null,null,null,null,null,null,null,null,null,null,null,null,null,null,null,null,null,null,null,null,null,null,null,null,0,null,0]
[null,0,0,0,38,"","",null,null,null,null,null,null,null,null,null,null,null,null,null,null,null,null,null,null,null,null,null,null,null,null,null,null,null,null,null,null,null,0,null,0]
[null,0,0,0,39,"","",null,null,null,null,null,null,null,null,null,null,null,null,null,null,null,null,null,null,null,null,null,null,null,null,null,null,null,null,null,null,null,0,null,0]
[null,0,0,0,40,"","",null,null,null,null,null,null,null,null,null,null,null,null,null,null,null,null,null,null,null,null,null,null,null,null,null,null,null,null,null,null,null,0,null,0]
[null,0,0,0,"","","",null,null,null,null,null,null,null,null,null,null,null,null,null,null,null,null,null,null,null,null,null,null,null,null,null,null,null,null,null,null,null,0,null,0]
[null,0,0,0,"","","",null,null,null,null,null,null,null,null,null,null,null,null,null,null,null,null,null,null,null,null,null,null,null,null,null,null,null,null,null,null,null,0,null,0]
[null,0,0,0,"","","",null,null,null,null,null,null,null,null,null,null,null,null,null,null,null,null,null,null,null,null,null,null,null,null,null,null,null,null,null,null,null,0,null,0]
[null,0,0,0,"","","",null,null,null,null,null,null,null,null,null,null,null,null,null,null,null,null,null,null,null,null,null,null,null,null,null,null,null,null,null,null,null,0,null,0]
[null,0,0,0,"","","",null,null,null,null,null,null,null,null,null,null,null,null,null,null,null,null,null,null,null,null,null,null,null,null,null,null,null,null,null,null,null,0,null,0]
[null,0,0,0,"","","",null,null,null,null,null,null,null,null,null,null,null,null,null,null,null,null,null,null,null,null,null,null,null,null,null,null,null,null,null,null,null,0,null,0]
[null,0,0,0,"","","",null,null,null,null,null,null,null,null,null,null,null,null,null,null,null,null,null,null,null,null,null,null,null,null,null,null,null,null,null,null,null,0,null,0]
[null,0,0,0,"","","",null,null,null,null,null,null,null,null,null,null,null,null,null,null,null,null,null,null,null,null,null,null,null,null,null,null,null,null,null,null,null,0,null,0]
[null,0,0,0,"","","",null,null,null,null,null,null,null,null,null,null,null,null,null,null,null,null,null,null,null,null,null,null,null,null,null,null,null,null,null,null,null,0,null,0]
[null,0,0,0,"","","",null,null,null,null,null,null,null,null,null,null,null,null,null,null,null,null,null,null,null,null,null,null,null,null,null,null,null,null,null,null,null,0,null,0]
[null,0,0,0]
[null,{"$f":"AM536","v":0},{"$f":"AN536","v":0},{"$f":"AO536","v":0},null,null,null,null,null,null,null,null,null,null,null,null,"الثانية 10"]
[null,0,0,0]
[null,0,0,0]
[null,0,0,0]
[null,0,0,0]
[null,0,0,0,"رقم\nالتلميذ","الإسم و النسب","القسم","الأيـــــــــــــــــــــــــــــــــــــــــــــــــــــــــــــــــــــــــــام"]
[null,0,0,"31",null,null,null,"01","02","03","04","05","06","07","08","09","10","11","12","13",14,"15","16","17","18","19","20","21","22","23","24","25","26","27","28","29","30","31",null,null,"31"]
[null,0,0,31,null,null,null,null,null,3,4,5,6,7,8,9,10,11,12,13,14,15,16,17,18,19,20,21,22,23,24,25,26,27,28,29,30,31,null,null,31]
[10,0,0,4,1,"انس مهداوي","الثانية 10",null,3,null,null,null,null,null,null,1,null,null,null,null,null,null,null,null,null,null,null,null,null,null,null,null,null,null,null,null,null,null,{"$f":"IF(RIGHT(H544)=\"j\",LEFT(H544))+IF(RIGHT(I544)=\"j\",LEFT(I544))+IF(RIGHT(J544)=\"j\",LEFT(J544))+IF(RIGHT(K544)=\"j\",LEFT(K544))+IF(RIGHT(L544)=\"j\",LEFT(L544))+IF(RIGHT(M544)=\"j\",LEFT(M544))+IF(RIGHT(N544)=\"j\",LEFT(N544))+IF(RIGHT(O544)=\"j\",LEFT(O544))+IF(RIGHT(P544)=\"j\",LEFT(P544))+IF(RIGHT(Q544)=\"j\",LEFT(Q544))+IF(RIGHT(R544)=\"j\",LEFT(R544))+IF(RIGHT(S544)=\"j\",LEFT(S544))+IF(RIGHT(T544)=\"j\",LEFT(T544))+IF(RIGHT(U544)=\"j\",LEFT(U544))+IF(RIGHT(V544)=\"j\",LEFT(V544))+IF(RIGHT(W544)=\"j\",LEFT(W544))+IF(RIGHT(X544)=\"j\",LEFT(X544))+IF(RIGHT(Y544)=\"j\",LEFT(Y544))+IF(RIGHT(Z544)=\"j\",LEFT(Z544))+IF(RIGHT(AA544)=\"j\",LEFT(AA544))+IF(RIGHT(AB544)=\"j\",LEFT(AB544))+IF(RIGHT(AC544)=\"j\",LEFT(AC544))+IF(RIGHT(AD544)=\"j\",LEFT(AD544))+IF(RIGHT(AE544)=\"j\",LEFT(AE544))+IF(RIGHT(AF544)=\"j\",LEFT(AF544))+IF(RIGHT(AG544)=\"j\",LEFT(AG544))+IF(RIGHT(AH544)=\"j\",LEFT(AH544))+IF(RIGHT(AI544)=\"j\",LEFT(AI544))+IF(RIGHT(AJ544)=\"j\",LEFT(AJ544))+IF(RIGHT(AK544)=\"j\",LEFT(AK544))+IF(RIGHT(AL544)=\"j\",LEFT(AL544))","v":0},null,{"$f":"SUM(H544:AL544)","v":4}]
[10,0,0,0,2,"يحي باكزيز","الثانية 10",null,null,null,null,null,null,null,null,null,null,null,null,null,null,null,null,null,null,null,null,null,null,null,null,null,null,null,null,null,null,null,0,null,0]
[10,0,0,2,3,"امل وازدو","الثانية 10",null,2,null,null,null,null,null,null,null,null,null,null,null,null,null,null,null,null,null,null,null,null,null,null,null,null,null,null,null,null,null,0,null,2]
[10,0,0,0,4,"امينة زكي","الثانية 10",null,null,null,null,null,null,null,null,null,null,null,null,null,null,null,null,null,null,null,null,null,null,null,null,null,null,null,null,null,null,null,0,null,0]
[10,0,0,0,5,"محمد المساوي","الثانية 10",null,null,null,null,null,null,null,null,null,null,null,null,null,null,null,null,null,null,null,null,null,null,null,null,null,null,null,null,null,null,null,0,null,0]
[10,0,0,0,6,"انور بنلكبير","الثانية 10",null,null,null,null,null,null,null,null,null,null,null,null,null,null,null,null,null,null,null,null,null,null,null,null,null,null,null,null,null,null,null,0,null,0]
[10,0,0,1,7,"عبد اللطيف ايت بويتران","الثانية 10",null,null,null,null,null,null,null,null,1,null,null,null,null,null,null,null,null,null,null,null,null,null,null,null,null,null,null,null,null,null,null,0,null,1]
[10,0,0,0,8,"سعاد زربان","الثانية 10",null,null,null,null,null,null,null,null,null,null,null,null,null,null,null,null,null,null,null,null,null,null,null,null,null,null,null,null,null,null,null,0,null,0]
[10,0,0,1,9,"بدر التدراني","الثانية 10",null,null,null,null,null,null,null,null,null,null,1,null,null,null,null,null,null,null,null,null,null,null,null,null,null,null,null,null,null,null,null,0,null,1]
[10,0,0,0,10,"بشرى حلام","الثانية 10",null,null,null,null,null,null,null,null,null,null,null,null,null,null,null,null,null,null,null,null,null,null,null,null,null,null,null,null,null,null,null,0,null,0]
[10,0,0,5,11,"امين البوري","الثانية 10",null,1,null,null,null,null,null,null,4,null,null,null,null,null,null,null,null,null,null,null,null,null,null,null,null,null,null,null,null,null,null,0,null,5]
[10,0,0,0,12,"عز الدين البدري","الثانية 10",null,null,null,null,null,null,null,null,null,null,null,null,null,null,null,null,null,null,null,null,null,null,null,null,null,null,null,null,null,null,null,0,null,0]
[10,0,0,1,13,"ياسين ادوسعدان","الثانية 10",null,null,null,null,null,null,null,null,1,null,null,null,null,null,null,null,null,null,null,null,null,null,null,null,null,null,null,null,null,null,null,0,null,1]
[10,0,0,0,14,"منى الصاوي","الثانية 10",null,null,null,null,null,null,null,null,null,null,null,null,null,null,null,null,null,null,null,null,null,null,null,null,null,null,null,null,null,null,null,0,null,0]
[10,2,0,0,15,"مريم الشلحي","الثانية 10",null,null,null,"2j",null,null,null,null,null,null,null,null,null,null,null,null,null,null,null,null,null,null,null,null,null,null,null,null,null,null,null,2,null,0]
[10,0,0,0,16,"زينب ايت القاضي","الثانية 10",null,null,null,null,null,null,null,null,null,null,null,null,null,null,null,null,null,null,null,null,null,null,null,null,null,null,null,null,null,null,null,0,null,0]
[10,0,0,6,17,"اسامة المدروشي","الثانية 10",null,1,null,2,null,null,null,null,3,null,null,null,null,null,null,null,null,null,null,null,null,null,null,null,null,null,null,null,null,null,null,0,null,6]
[10,0,0,0,18,"فاطمة الزهراء امزيل","الثانية 10",null,null,null,null,null,null,null,null,null,null,null,null,null,null,null,null,null,null,null,null,null,null,null,null,null,null,null,null,null,null,null,0,null,0]
[10,0,0,0,19,"لمياء بقش","الثانية 10",null,null,null,null,null,null,null,null,null,null,null,null,null,null,null,null,null,null,null,null,null,null,null,null,null,null,null,null,null,null,null,0,null,0]
[10,0,0,1,20,"حنان بن يوسف","الثانية 10",null,null,null,null,null,null,null,null,null,null,null,1,null,null,null,null,null,null,null,null,null,null,null,null,null,null,null,null,null,null,null,0,null,1]
[10,0,0,0,21,"سلمى اتبير","الثانية 10",null,null,null,null,null,null,null,null,null,null,null,null,null,null,null,null,null,null,null,null,null,null,null,null,null,null,null,null,null,null,null,0,null,0]
[10,0,0,3,22,"وداد منصوري","الثانية 10",null,1,null,null,null,null,null,null,2,null,null,null,null,null,null,null,null,null,null,null,null,null,null,null,null,null,null,null,null,null,null,0,null,3]
[10,0,0,0,23,"فاطمة عبد الواحد","الثانية 10",null,null,null,null,null,null,null,null,null,null,null,null,null,null,null,null,null,null,null,null,null,null,null,null,null,null,null,null,null,null,null,0,null,0]
[10,0,0,0,24,"مريم اعموم","الثانية 10",null,null,null,null,null,null,null,null,null,null,null,null,null,null,null,null,null,null,null,null,null,null,null,null,null,null,null,null,null,null,null,0,null,0]
[10,0,0,30,25,"ايوب زكور","الثانية 10",null,6,2,1,null,null,6,4,4,2,3,2,null,null,null,null,null,null,null,null,null,null,null,null,null,null,null,null,null,null,null,0,null,30]
[10,0,0,4,26,"ايمن شاكري","الثانية 10",null,3,null,null,null,null,null,null,null,null,1,null,null,null,null,null,null,null,null,null,null,null,null,null,null,null,null,null,null,null,null,0,null,4]
[10,0,0,0,27,"الياس ادريوش","الثانية 10",null,null,null,null,null,null,null,null,null,null,null,null,null,null,null,null,null,null,null,null,null,null,null,null,null,null,null,null,null,null,null,0,null,0]
[10,0,0,0,28,"محمد المساعدي","الثانية 10",null,null,null,null,null,null,null,null,null,null,null,null,null,null,null,null,null,null,null,null,null,null,null,null,null,null,null,null,null,null,null,0,null,0]
[10,0,0,0,29,"اكرام مساعد","الثانية 10",null,null,null,null,null,null,null,null,null,null,null,null,null,null,null,null,null,null,null,null,null,null,null,null,null,null,null,null,null,null,null,0,null,0]
[10,0,0,0,30,"اسماء خالدي","الثانية 10",null,null,null,null,null,null,null,null,null,null,null,null,null,null,null,null,null,null,null,null,null,null,null,null,null,null,null,null,null,null,null,0,null,0]
[10,0,0,0,31,"هيبة بن عبو","الثانية 10",null,null,null,null,null,null,null,null,null,null,null,null,null,null,null,null,null,null,null,null,null,null,null,null,null,null,null,null,null,null,null,0,null,0]
[10,0,0,4,32,"سفيان بساح","الثانية 10",null,1,2,null,null,null,null,null,null,null,1,null,null,null,null,null,null,null,null,null,null,null,null,null,null,null,null,null,null,null,null,0,null,4]
[10,0,0,0,33,"زهير الوافي","الثانية 10",null,null,null,null,null,null,null,null,null,null,null,null,null,null,null,null,null,null,null,null,null,null,null,null,null,null,null,null,null,null,null,0,null,0]
[10,0,0,4,34,"فدوى هارون","الثانية 10",null,null,null,null,null,null,null,null,2,null,2,null,null,null,null,null,null,null,null,null,null,null,null,null,null,null,null,null,null,null,null,0,null,4]
[10,0,0,0,35,"محمد بادو","الثانية 10",null,null,null,null,null,null,null,null,null,null,null,null,null,null,null,null,null,null,null,null,null,null,null,null,null,null,null,null,null,null,null,0,null,0]
[10,0,0,3,36,"انس يوساف","الثانية 10",null,3,null,null,null,null,null,null,null,null,null,null,null,null,null,null,null,null,null,null,null,null,null,null,null,null,null,null,null,null,null,0,null,3]
[10,0,0,0,37,"انوار رخويى","الثانية 10",null,null,null,null,null,null,null,null,null,null,null,null,null,null,null,null,null,null,null,null,null,null,null,null,null,null,null,null,null,null,null,0,null,0]
[null,0,0,0,38,"ابتسام الموي","الثانية 10",null,null,null,null,null,null,null,null,null,null,null,null,null,null,null,null,null,null,null,null,null,null,null,null,null,null,null,null,null,null,null,0,null,0]
[null,0,0,0,39,"","",null,null,null,null,null,null,null,null,null,null,null,null,null,null,null,null,null,null,null,null,null,null,null,null,null,null,null,null,null,null,null,0,null,0]
[null,0,0,0,40,"","",null,null,null,null,null,null,null,null,null,null,null,null,null,null,null,null,null,null,null,null,null,null,null,null,null,null,null,null,null,null,null,0,null,0]
[null,0,0,0,41,"","",null,null,null,null,null,null,null,null,null,null,null,null,null,null,null,null,null,null,null,null,null,null,null,null,null,null,null,null,null,null,null,0,null,0]
[null,0,0,0,"","","",null,null,null,null,null,null,null,null,null,null,null,null,null,null,null,null,null,null,null,null,null,null,null,null,null,null,null,null,null,null,null,0,null,0]
[null,0,0,0,"","","",null,null,null,null,null,null,null,null,null,null,null,null,null,null,null,null,null,null,null,null,null,null,null,null,null,null,null,null,null,null,null,0,null,0]
[null,0,0,0,"","","",null,null,null,null,null,null,null,null,null,null,null,null,null,null,null,null,null,null,null,null,null,null,null,null,null,null,null,null,null,null,null,0,null,0]
[null,0,0,0,"","","",null,null,null,null,null,null,null,null,null,null,null,null,null,null,null,null,null,null,null,null,null,null,null,null,null,null,null,null,null,null,null,0,null,0]
[null,0,0,0,"","","",null,null,null,null,null,null,null,null,null,null,null,null,null,null,null,null,null,null,null,null,null,null,null,null,null,null,null,null,null,null,null,0,null,0]
[null,0,0,0,"","","",null,null,null,null,null,null,null,null,null,null,null,null,null,null,null,null,null,null,null,null,null,null,null,null,null,null,null,null,null,null,null,0,null,0]
[null,0,0,0,"","","",null,null,null,null,null,null,null,null,null,null,null,null,null,null,null,null,null,null,null,null,null,null,null,null,null,null,null,null,null,null,null,0,null,0]
[null,0,0,0,"","","",null,null,null,null,null,null,null,null,null,null,null,null,null,null,null,null,null,null,null,null,null,null,null,null,null,null,null,null,null,null,null,0,null,0]
[null,0,0,0,"","","",null,null,null,null,null,null,null,null,null,null,null,null,null,null,null,null,null,null,null,null,null,null,null,null,null,null,null,null,null,null,null,0,null,0]